Workbook

Sheet Data summary
A1: RUN # 2 | B1: Rate classes | C1: Weather station used for normalization | H1: Test Year
A2: 1 | B2: Residential | C2: Windsor | H2: 2004
A3: 2 | B3: GS>50kW
A4: 3 | B4: Street Lighting
A5: 4 | B5: Sentinel Lighting
A6: 5 | B6: USL
A7: 6 | B7: GS < 50 kW
A10: Monthly kWh by class (with actual weather) | C10: Jan | D10: Feb | E10: Mar | F10: Apr | G10: May | H10: Jun | I10: Jul | J10: Aug | K10: Sep | L10: Oct | M10: Nov | N10: Dec | O10: TOTAL
A11: 1 | B11: Residential | C11: 31053454.36 | D11: 25345125.78 | E11: 23836707.88 | F11: 18973366.9 | G11: 16112686.42 | H11: 13989061.99 | I11: 14542439.94 | J11: 14816975.5 | K11: 14140924.97 | L11: 15981167.84 | M11: 20100427.56 | N11: 26823201.75 | O11: =SUM(C11:N11) -> 235715540.9
A12: 2 | B12: GS>50kW | C12: 13034596.26 | D12: 12068419.85 | E12: 12565021.04 | F12: 11096421.1 | G12: 10758175.09 | H12: 11014196.32 | I12: 11364895.3 | J12: 11567316.16 | K12: 12142131.85 | L12: 12662999.02 | M12: 12767181.26 | N12: 13872081.5 | O12: 144913434.8
A13: 3 | B13: Street Lighting | C13: 451924.2 | D13: 399948.72 | E13: 442460.52 | F13: 428241.6 | G13: 442516.32 | H13: 428241.6 | I13: 441330.47 | J13: 442516.32 | K13: 428259.6 | L13: 442516.32 | M13: 448257.6 | N13: 556942.08 | O13: 5353155.35
A14: 4 | B14: Sentinel Lighting | C14: 598.92 | D14: 534.24 | E14: 591.48 | F14: 579.6 | G14: 598.92 | H14: 579.6 | I14: 638.12 | J14: 639.84 | K14: 619.2 | L14: 639.84 | M14: 619.2 | N14: 660.48 | O14: 7299.44
A15: 5 | B15: USL | C15: 44912.03 | D15: 41077.96 | E15: 43109.03 | F15: 43278.2 | G15: 47292.03 | H15: 44414.2 | I15: 43590.03 | J15: 41233.03 | K15: 39624.2 | L15: 58292.03 | M15: 39032.2 | N15: 48246.03 | O15: 534100.97
A16: 6 | B16: GS < 50 kW | C16: 8114994.76 | D16: 7126092.71 | E16: 6722067.64 | F16: 6361678.27 | G16: 5193246.7 | H16: 5613903.16 | I16: 5953695.92 | J16: 5969889.5 | K16: 5618992.1 | L16: 5442173.25 | M16: 5953366.62 | N16: 7333311.34 | O16: 75403411.97
A19: Monthly kWh by class (with normalized weather) | C19: Jan | D19: Feb | E19: Mar | F19: Apr | G19: May | H19: Jun | I19: Jul | J19: Aug | K19: Sep | L19: Oct | M19: Nov | N19: Dec | O19: TOTAL
A20: 1 | B20: Residential | C20: 29734588.43 | D20: 25719070.31 | E20: 25156025.51 | F20: 19554428.12 | G20: 16359235.86 | H20: 14192988.72 | I20: 14715282.6 | J20: 15048879.43 | K20: 14277205.27 | L20: 16854868.86 | M20: 21316452.74 | N20: 26729132.68 | O20: =SUM(C20:N20) -> 239658158.5
A21: 2 | B21: GS>50kW | C21: 12804647.07 | D21: 12133618.47 | E21: 12795049 | F21: 11197731.29 | G21: 10826717.52 | H21: 11176057.52 | I21: 11502084.39 | J21: 11751383.5 | K21: 12209996.5 | L21: 12815332.05 | M21: 12979199.79 | N21: 13855680.21 | O21: 146047497.3
A22: 3 | B22: Street Lighting | C22: 451924.2 | D22: 399948.72 | E22: 442460.52 | F22: 428241.6 | G22: 442516.32 | H22: 428241.6 | I22: 441330.47 | J22: 442516.32 | K22: 428259.6 | L22: 442516.32 | M22: 448257.6 | N22: 556942.08 | O22: 5353155.35
A23: 4 | B23: Sentinel Lighting | C23: 598.92 | D23: 534.24 | E23: 591.48 | F23: 579.6 | G23: 598.92 | H23: 579.6 | I23: 638.12 | J23: 639.84 | K23: 619.2 | L23: 639.84 | M23: 619.2 | N23: 660.48 | O23: 7299.44
A24: 5 | B24: USL | C24: 44912.03 | D24: 41077.96 | E24: 43109.03 | F24: 43278.2 | G24: 47292.03 | H24: 44414.2 | I24: 43590.03 | J24: 41233.03 | K24: 39624.2 | L24: 58292.03 | M24: 39032.2 | N24: 48246.03 | O24: 534100.97
A25: 6 | B25: GS < 50 kW | C25: 7897692.27 | D25: 7187705.55 | E25: 6939444.546 | F25: 6457416.62 | G25: 5270877.46 | H25: 5830411.638 | I25: 6137202.521 | J25: 6216101.305 | K25: 5705314.582 | L25: 5586128.298 | M25: 6153724.584 | N25: 7317812.088 | O25: 76699831.46
A28: Residential class information | C28: Equipment saturation
B29: Electric space heating | C29: 0.24
B30: Electric water heating | C30: 0.5
B31: Air conditioning | C31: 0.5
B32: Baseload | C32: 1
A35: General service >50kW | C35: 2004 kWh (Actual) | D35: 2004 kWh (Weather Corrected)
B36: Weather sensitive load | C36: 68956502.04 | D36: 70090564.58
B37: Non-weather sensitive load | C37: 75956932.73 | D37: 75956932.73
B38: TOTAL | C38: =SUM(C36:C37) -> 144913434.8 | D38: =SUM(D36:D37) -> 146047497.3

Sheet Hourly load shapes by class
A1: ALL UNITS IN GWh | G1: 2004 Load Shape | O1: 2024 Load Shape
A2: Year | B2: Month | C2: Day | D2: Hour (EST) | G2: Residential | H2: GS>50kW | I2: Street Lighting | J2: Sentinel Lighting | K2: USL | L2: GS<50kW | M2: TOTAL LDC sales | O2: =G2 -> Residential | P2: GS>50kW | Q2: Street Lighting | R2: Sentinel Lighting | S2: USL | T2: GS<50kW | U2: TOTAL LDC sales | X2: Residential | Y2: GS>50kW | Z2: Street Lighting | AA2: Sentinel Lighting | AB2: USL | AC2: GS<50kW | AD2: Total
A3: 2004 | B3: 1 | C3: 1 | D3: 1 | G3: 0.02611501628 | H3: 0.01063449241 | I3: 0.00121485 | J3: 1.61e-06 | K3: 6.036563172e-05 | L3: 0.009653474858 | M3: 0.04767980918 | O3: =G3*X$5 -> 0.02105490583 | P3: =H3*Y$5 -> 0.01292033314 | Q3: =I3*Z$5 -> 0.0005660582829 | R3: =J3*AA$5 -> 1.590272678e-06 | S3: =K3*AB$5 -> 2.409067143e-05 | T3: =L3*AC$5 -> 0.008833119346 | U3: =SUM(O3:T3) -> 0.04340009754 | W3: 2004 | X3: =SUM(G3:G8786)*1000000 -> 239658158.5 | Y3: 146047497.3 | Z3: 5353155.35 | AA3: 7299.44 | AB3: 534100.97 | AC3: 76699831.46 | AD3: =SUM(X3:AC3) -> 468300043.1
A4: 2004 | B4: 1 | C4: 1 | D4: 2 | G4: 0.02470086791 | H4: 0.01044604409 | I4: 0.00121485 | J4: 1.61e-06 | K4: 6.036563172e-05 | L4: 0.009512275844 | M4: 0.04593601347 | O4: 0.01991476636 | P4: 0.01269137862 | Q4: =I4*Z$5 -> 0.0005660582829 | R4: 1.590272678e-06 | S4: 2.409067143e-05 | T4: 0.008703919472 | U4: 0.04190180368 | W4: 2024 Forecast | X4: 193221398.1 | Y4: 177439810.6 | Z4: 2494298 | AA4: 7210 | AB4: 213148.618 | AC4: 70181854.21 | AD4: =SUM(X4:AC4) -> 443557719.6
A5: 2004 | B5: 1 | C5: 1 | D5: 3 | G5: 0.02328571394 | H5: 0.01045677346 | I5: 0.00121485 | J5: 1.61e-06 | K5: 6.036563172e-05 | L5: 0.01011843144 | M5: 0.04513774447 | O5: 0.01877381614 | P5: 0.01270441423 | Q5: 0.0005660582829 | R5: 1.590272678e-06 | S5: 2.409067143e-05 | T5: 0.009258563761 | U5: 0.04132853336 | W5: Scaling Factor | X5: =X4/X3 -> 0.8062375148 | Y5: =Y4/Y3 -> 1.214945917 | Z5: =Z4/Z3 -> 0.4659491154 | AA5: 0.9877470052 | AB5: 0.3990792566 | AC5: 0.9150196666 | AD5: 0.9471656604
A6: 2004 | B6: 1 | C6: 1 | D6: 4 | G6: 0.02343691246 | H6: 0.01023825228 | I6: 0.00121485 | J6: 1.61e-06 | K6: 6.036563172e-05 | L6: 0.009983437145 | M6: 0.04493542751 | O6: 0.01889571806 | P6: 0.01243892281 | Q6: 0.0005660582829 | R6: 1.590272678e-06 | S6: 2.409067143e-05 | T6: 0.009135041328 | U6: 0.04106142142
A7: 2004 | B7: 1 | C7: 1 | D7: 5 | G7: 0.02304659595 | H7: 0.01036835535 | I7: 0.00121485 | J7: 1.61e-06 | K7: 6.036563172e-05 | L7: 0.0107129789 | M7: 0.04540475582 | O7: 0.01858103024 | P7: 0.012596991 | Q7: 0.0005660582829 | R7: 1.590272678e-06 | S7: 2.409067143e-05 | T7: 0.009802586378 | U7: 0.04157234685
A8: 2004 | B8: 1 | C8: 1 | D8: 6 | G8: 0.02438662262 | H8: 0.01058659936 | I8: 0.00121485 | J8: 1.61e-06 | K8: 6.036563172e-05 | L8: 0.01058608285 | M8: 0.04683613047 | O8: 0.01966141002 | P8: 0.01286214567 | Q8: 0.0005660582829 | R8: 1.590272678e-06 | S8: 2.409067143e-05 | T8: 0.009686474004 | U8: 0.04280176893
A9: 2004 | B9: 1 | C9: 1 | D9: 7 | G9: 0.02778744558 | H9: 0.0112795028 | I9: 0 | J9: 0 | K9: 6.036563172e-05 | L9: 0.010965179 | M9: 0.05009249302 | O9: 0.02240328107 | P9: 0.01370398588 | Q9: 0 | R9: 0 | S9: 2.409067143e-05 | T9: 0.01003335443 | U9: 0.04616471205
A10: 2004 | B10: 1 | C10: 1 | D10: 8 | G10: 0.03133878939 | H10: 0.01239421269 | I10: 0 | J10: 0 | K10: 6.036563172e-05 | L10: 0.01114790221 | M10: 0.05494126992 | O10: 0.02526650768 | P10: 0.01505829811 | Q10: 0 | R10: 0 | S10: 2.409067143e-05 | T10: 0.01020054976 | U10: 0.05054944622
A11: 2004 | B11: 1 | C11: 1 | D11: 9 | G11: 0.03549015629 | H11: 0.01275621437 | I11: 0 | J11: 0 | K11: 6.036563172e-05 | L11: 0.01041252241 | M11: 0.0587192587 | O11: 0.02861349541 | P11: 0.01549811057 | Q11: 0 | R11: 0 | S11: 2.409067143e-05 | T11: 0.009527662786 | U11: 0.05366335943
A12: 2004 | B12: 1 | C12: 1 | D12: 10 | G12: 0.03937554068 | H12: 0.01285518059 | I12: 0 | J12: 0 | K12: 6.036563172e-05 | L12: 0.01064522255 | M12: 0.06293630946 | O12: 0.03174603807 | P12: 0.01561834918 | Q12: 0 | R12: 0 | S12: 2.409067143e-05 | T12: 0.009740587989 | U12: 0.0571290659
A13: 2004 | B13: 1 | C13: 1 | D13: 11 | G13: 0.03853375578 | H13: 0.01326056596 | I13: 0 | J13: 0 | K13: 6.036563172e-05 | L13: 0.01263547919 | M13: 0.06449016655 | O13: 0.03106735949 | P13: 0.01611087047 | Q13: 0 | R13: 0 | S13: 2.409067143e-05 | T13: 0.01156171195 | U13: 0.05876403259
A14: 2004 | B14: 1 | C14: 1 | D14: 12 | G14: 0.03873212662 | H14: 0.01336893939 | I14: 0 | J14: 0 | K14: 6.036563172e-05 | L14: 0.01288339577 | M14: 0.0650448274 | O14: 0.03122729351 | P14: 0.01624253833 | Q14: 0 | R14: 0 | S14: 2.409067143e-05 | T14: 0.0117885605 | U14: 0.05928248301
A15: 2004 | B15: 1 | C15: 1 | D15: 13 | G15: 0.03826625774 | H15: 0.01318913631 | I15: 0 | J15: 0 | K15: 6.036563172e-05 | L15: 0.01092231606 | M15: 0.06243807574 | O15: 0.03085169254 | P15: 0.01602408732 | Q15: 0 | R15: 0 | S15: 2.409067143e-05 | T15: 0.009994133999 | U15: 0.05689400453
A16: 2004 | B16: 1 | C16: 1 | D16: 14 | G16: 0.03652750672 | H16: 0.01344789863 | I16: 0 | J16: 0 | K16: 6.036563172e-05 | L16: 0.01167285286 | M16: 0.06170862384 | O16: 0.02944984624 | P16: 0.01633846954 | Q16: 0 | R16: 0 | S16: 2.409067143e-05 | T16: 0.01068088993 | U16: 0.05649329638
A17: 2004 | B17: 1 | C17: 1 | D17: 15 | G17: 0.03566643962 | H17: 0.01350504097 | I17: 0 | J17: 0 | K17: 6.036563172e-05 | L17: 0.01205975048 | M17: 0.06129159671 | O17: 0.02875562164 | P17: 0.01640789439 | Q17: 0 | R17: 0 | S17: 2.409067143e-05 | T17: 0.01103490887 | U17: 0.05622251557
A18: 2004 | B18: 1 | C18: 1 | D18: 16 | G18: 0.03700840598 | H18: 0.01313675064 | I18: 0 | J18: 0 | K18: 6.036563172e-05 | L18: 0.010571329 | M18: 0.06077685125 | O18: 0.02983756527 | P18: 0.01596044156 | Q18: 0 | R18: 0 | S18: 2.409067143e-05 | T18: 0.009672973937 | U18: 0.05549507143
A19: 2004 | B19: 1 | C19: 1 | D19: 17 | G19: 0.04101232549 | H19: 0.0129702205 | I19: 0 | J19: 0 | K19: 6.036563172e-05 | L19: 0.01005913274 | M19: 0.06410204436 | O19: 0.03306567538 | P19: 0.01575811645 | Q19: 0 | R19: 0 | S19: 2.409067143e-05 | T19: 0.009204304288 | U19: 0.05805218679
A20: 2004 | B20: 1 | C20: 1 | D20: 18 | G20: 0.04544595075 | H20: 0.01297050364 | I20: 0 | J20: 0 | K20: 6.036563172e-05 | L20: 0.01014642612 | M20: 0.06862324614 | O20: 0.03664023039 | P20: 0.01575846045 | Q20: 0 | R20: 0 | S20: 2.409067143e-05 | T20: 0.009284179444 | U20: 0.06170696095
A21: 2004 | B21: 1 | C21: 1 | D21: 19 | G21: 0.04651750673 | H21: 0.01251882586 | I21: 0.00121485 | J21: 1.61e-06 | K21: 6.036563172e-05 | L21: 0.007400350181 | M21: 0.06771350841 | O21: 0.03750415902 | P21: 0.01520969638 | Q21: 0.0005660582829 | R21: 1.590272678e-06 | S21: 2.409067143e-05 | T21: 0.006771465955 | U21: 0.06007706058
A22: 2004 | B22: 1 | C22: 1 | D22: 20 | G22: 0.04331450534 | H22: 0.01242856174 | I22: 0.00121485 | J22: 1.61e-06 | K22: 6.036563172e-05 | L22: 0.008907150237 | M22: 0.06592704294 | O22: 0.03492177914 | P22: 0.01510003034 | Q22: 0.0005660582829 | R22: 1.590272678e-06 | S22: 2.409067143e-05 | T22: 0.008150217641 | U22: 0.05876376635
A23: 2004 | B23: 1 | C23: 1 | D23: 21 | G23: 0.04054270148 | H23: 0.01219956038 | I23: 0.00121485 | J23: 1.61e-06 | K23: 6.036563172e-05 | L23: 0.009464991356 | M23: 0.06348407885 | O23: 0.03268704688 | P23: 0.01482180608 | Q23: 0.0005660582829 | R23: 1.590272678e-06 | S23: 2.409067143e-05 | T23: 0.008660653235 | U23: 0.05676124542
A24: 2004 | B24: 1 | C24: 1 | D24: 22 | G24: 0.03898425453 | H24: 0.01149421006 | I24: 0.00121485 | J24: 1.61e-06 | K24: 6.036563172e-05 | L24: 0.008159998048 | M24: 0.05991528828 | O24: 0.03143056849 | P24: 0.01396484359 | Q24: 0.0005660582829 | R24: 1.590272678e-06 | S24: 2.409067143e-05 | T24: 0.007466558694 | U24: 0.05345371
A25: 2004 | B25: 1 | C25: 1 | D25: 23 | G25: 0.03583864279 | H25: 0.01134187 | I25: 0.00121485 | J25: 1.61e-06 | K25: 6.036563172e-05 | L25: 0.008324066956 | M25: 0.05678140538 | O25: 0.0288944583 | P25: 0.01377975866 | Q25: 0.0005660582829 | R25: 1.590272678e-06 | S25: 2.409067143e-05 | T25: 0.007616684971 | U25: 0.05088264115
A26: 2004 | B26: 1 | C26: 1 | D26: 24 | G26: 0.02934173934 | H26: 0.01116721608 | I26: 0.00121485 | J26: 1.61e-06 | K26: 6.036563172e-05 | L26: 0.009619722701 | M26: 0.05140550375 | O26: 0.023656411 | P26: 0.01356756359 | Q26: 0.0005660582829 | R26: 1.590272678e-06 | S26: 2.409067143e-05 | T26: 0.008802235459 | U26: 0.04661794928
A27: 2004 | B27: 1 | C27: 2 | D27: 1 | G27: 0.02549857271 | H27: 0.01136433815 | I27: 0.00121485 | J27: 1.61e-06 | K27: 6.036563172e-05 | L27: 0.008848359839 | M27: 0.04698809633 | O27: 0.02055790589 | P27: 0.01380705624 | Q27: 0.0005660582829 | R27: 1.590272678e-06 | S27: 2.409067143e-05 | T27: 0.008096423269 | U27: 0.04305312463
A28: 2004 | B28: 1 | C28: 2 | D28: 2 | G28: 0.02344057887 | H28: 0.01100965941 | I28: 0.00121485 | J28: 1.61e-06 | K28: 6.036563172e-05 | L28: 0.009542536087 | M28: 0.0452696 | O28: 0.01889867405 | P28: 0.01337614076 | Q28: 0.0005660582829 | R28: 1.590272678e-06 | S28: 2.409067143e-05 | T28: 0.008731608189 | U28: 0.04159816222
A29: 2004 | B29: 1 | C29: 2 | D29: 3 | G29: 0.02205572561 | H29: 0.01099368252 | I29: 0.00121485 | J29: 1.61e-06 | K29: 6.036563172e-05 | L29: 0.01015667873 | M29: 0.04448291249 | O29: 0.0177821534 | P29: 0.01335672969 | Q29: 0.0005660582829 | R29: 1.590272678e-06 | S29: 2.409067143e-05 | T29: 0.009293560787 | U29: 0.04102418311
A30: 2004 | B30: 1 | C30: 2 | D30: 4 | G30: 0.02247682843 | H30: 0.01064115481 | I30: 0.00121485 | J30: 1.61e-06 | K30: 6.036563172e-05 | L30: 0.009888718041 | M30: 0.04428352691 | O30: 0.0181216623 | P30: 0.01292842759 | Q30: 0.0005660582829 | R30: 1.590272678e-06 | S30: 2.409067143e-05 | T30: 0.009048371485 | U30: 0.0406902006
A31: 2004 | B31: 1 | C31: 2 | D31: 5 | G31: 0.02182309972 | H31: 0.01098099727 | I31: 0.00121485 | J31: 1.61e-06 | K31: 6.036563172e-05 | L31: 0.01066512291 | M31: 0.04474604553 | O31: 0.01759460168 | P31: 0.0133413178 | Q31: 0.0005660582829 | R31: 1.590272678e-06 | S31: 2.409067143e-05 | T31: 0.00975879721 | U31: 0.04128645592
A32: 2004 | B32: 1 | C32: 2 | D32: 6 | G32: 0.02313366896 | H32: 0.01156115852 | I32: 0.00121485 | J32: 1.61e-06 | K32: 6.036563172e-05 | L32: 0.01018500485 | M32: 0.04615665796 | O32: 0.01865123177 | P32: 0.01404618235 | Q32: 0.0005660582829 | R32: 1.590272678e-06 | S32: 2.409067143e-05 | T32: 0.00931947974 | U32: 0.04260863309
A33: 2004 | B33: 1 | C33: 2 | D33: 7 | G33: 0.02717926248 | H33: 0.01255924421 | I33: 0 | J33: 0 | K33: 6.036563172e-05 | L33: 0.009566905021 | M33: 0.04936577735 | O33: 0.02191294104 | P33: 0.01525880248 | Q33: 0 | R33: 0 | S33: 2.409067143e-05 | T33: 0.008753906243 | U33: 0.04594974043
A34: 2004 | B34: 1 | C34: 2 | D34: 8 | G34: 0.02993311402 | H34: 0.01442949702 | I34: 0 | J34: 0 | K34: 6.036563172e-05 | L34: 0.009721233239 | M34: 0.0541442099 | O34: 0.02413319946 | P34: 0.01753105849 | Q34: 0 | R34: 0 | S34: 2.409067143e-05 | T34: 0.008895119597 | U34: 0.05058346821
A35: 2004 | B35: 1 | C35: 2 | D35: 9 | G35: 0.03317000848 | H35: 0.01631593872 | I35: 0 | J35: 0 | K35: 6.036563172e-05 | L35: 0.00832107843 | M35: 0.05786739126 | O35: 0.0267429052 | P35: 0.01982298314 | Q35: 0 | R35: 0 | S35: 2.409067143e-05 | T35: 0.00761395041 | U35: 0.05420392942
A36: 2004 | B36: 1 | C36: 2 | D36: 10 | G36: 0.03574160824 | H36: 0.01723515502 | I36: 0 | J36: 0 | K36: 6.036563172e-05 | L36: 0.008986131841 | M36: 0.06202326074 | O36: 0.02881622541 | P36: 0.02093978123 | Q36: 0 | R36: 0 | S36: 2.409067143e-05 | T36: 0.008222487361 | U36: 0.05800258467
A37: 2004 | B37: 1 | C37: 2 | D37: 11 | G37: 0.03540413638 | H37: 0.01784123122 | I37: 0 | J37: 0 | K37: 6.036563172e-05 | L37: 0.01024883911 | M37: 0.06355457234 | O37: 0.02854414293 | P37: 0.02167613103 | Q37: 0 | R37: 0 | S37: 2.409067143e-05 | T37: 0.009377889348 | U37: 0.05962225398
A38: 2004 | B38: 1 | C38: 2 | D38: 12 | G38: 0.03611376844 | H38: 0.01790271805 | I38: 0 | J38: 0 | K38: 6.036563172e-05 | L38: 0.01002433454 | M38: 0.06410118665 | O38: 0.02911627491 | P38: 0.0217508342 | Q38: 0 | R38: 0 | S38: 2.409067143e-05 | T38: 0.009172463244 | U38: 0.06006366303
A39: 2004 | B39: 1 | C39: 2 | D39: 13 | G39: 0.03506694928 | H39: 0.01736453619 | I39: 0 | J39: 0 | K39: 6.036563172e-05 | L39: 0.009040407506 | M39: 0.0615322586 | O39: 0.02827229004 | P39: 0.02109697235 | Q39: 0 | R39: 0 | S39: 2.409067143e-05 | T39: 0.008272150662 | U39: 0.05766550372
A40: 2004 | B40: 1 | C40: 2 | D40: 14 | G40: 0.03454444916 | H40: 0.01742552019 | I40: 0 | J40: 0 | K40: 6.036563172e-05 | L40: 0.008783056561 | M40: 0.06081339155 | O40: 0.02785103084 | P40: 0.02117106462 | Q40: 0 | R40: 0 | S40: 2.409067143e-05 | T40: 0.008036669486 | U40: 0.05708285562
A41: 2004 | B41: 1 | C41: 2 | D41: 15 | G41: 0.03279978287 | H41: 0.01776380494 | I41: 0 | J41: 0 | K41: 6.036563172e-05 | L41: 0.009778458661 | M41: 0.0604024121 | O41: 0.02644441543 | P41: 0.02158206229 | Q41: 0 | R41: 0 | S41: 2.409067143e-05 | T41: 0.008947481984 | U41: 0.05699805037
A42: 2004 | B42: 1 | C42: 2 | D42: 16 | G42: 0.03343485412 | H42: 0.0174581605 | I42: 0 | J42: 0 | K42: 6.036563172e-05 | L42: 0.008941758663 | M42: 0.05989513891 | O42: 0.02695643369 | P42: 0.02121072082 | Q42: 0 | R42: 0 | S42: 2.409067143e-05 | T42: 0.00818188503 | U42: 0.05637313022
A43: 2004 | B43: 1 | C43: 2 | D43: 17 | G43: 0.03803256471 | H43: 0.01730378916 | I43: 0 | J43: 0 | K43: 6.036563172e-05 | L43: 0.007775360172 | M43: 0.06317207968 | O43: 0.03066328046 | P43: 0.02102316799 | Q43: 0 | R43: 0 | S43: 2.409067143e-05 | T43: 0.007114607472 | U43: 0.05882514659
A44: 2004 | B44: 1 | C44: 2 | D44: 18 | G44: 0.04180364496 | H44: 0.01728559969 | I44: 0 | J44: 0 | K44: 6.036563172e-05 | L44: 0.008478090722 | M44: 0.06762770101 | O44: 0.03370366682 | P44: 0.02100106878 | Q44: 0 | R44: 0 | S44: 2.409067143e-05 | T44: 0.007757619745 | U44: 0.06248644602
A45: 2004 | B45: 1 | C45: 2 | D45: 19 | G45: 0.04351063108 | H45: 0.01647203021 | I45: 0.00121485 | J45: 1.61e-06 | K45: 6.036563172e-05 | L45: 0.00547166316 | M45: 0.06673115008 | O45: 0.03507990307 | P45: 0.02001262586 | Q45: 0.0005660582829 | R45: 1.590272678e-06 | S45: 2.409067143e-05 | T45: 0.0050066794 | U45: 0.06069094755
A46: 2004 | B46: 1 | C46: 2 | D46: 20 | G46: 0.04158294672 | H46: 0.01632347369 | I46: 0.00121485 | J46: 1.61e-06 | K46: 6.036563172e-05 | L46: 0.005787358702 | M46: 0.06497060475 | O46: 0.03352573162 | P46: 0.01983213772 | Q46: 0.0005660582829 | R46: 1.590272678e-06 | S46: 2.409067143e-05 | T46: 0.00529554703 | U46: 0.0592451556
A47: 2004 | B47: 1 | C47: 2 | D47: 21 | G47: 0.03770961282 | H47: 0.0161334537 | I47: 0.00121485 | J47: 1.61e-06 | K47: 6.036563172e-05 | L47: 0.007443190391 | M47: 0.06256308254 | O47: 0.03040290453 | P47: 0.0196012737 | Q47: 0.0005660582829 | R47: 1.590272678e-06 | S47: 2.409067143e-05 | T47: 0.00681066559 | U47: 0.05740658305
A48: 2004 | B48: 1 | C48: 2 | D48: 22 | G48: 0.03685232653 | H48: 0.01497245679 | I48: 0.00121485 | J48: 1.61e-06 | K48: 6.036563172e-05 | L48: 0.005944455915 | M48: 0.05904606486 | O48: 0.02971172815 | P48: 0.01819072525 | Q48: 0.0005660582829 | R48: 1.590272678e-06 | S48: 2.409067143e-05 | T48: 0.00543929407 | U48: 0.0539334867
A49: 2004 | B49: 1 | C49: 2 | D49: 23 | G49: 0.03469423566 | H49: 0.01288619803 | I49: 0.00121485 | J49: 1.61e-06 | K49: 6.036563172e-05 | L49: 0.007100389511 | M49: 0.05595764883 | O49: 0.02797179434 | P49: 0.01565603369 | Q49: 0.0005660582829 | R49: 1.590272678e-06 | S49: 2.409067143e-05 | T49: 0.006496996043 | U49: 0.05071656329
A50: 2004 | B50: 1 | C50: 2 | D50: 24 | G50: 0.03168146516 | H50: 0.01151105917 | I50: 0.00121485 | J50: 1.61e-06 | K50: 6.036563172e-05 | L50: 0.006190388086 | M50: 0.05065973805 | O50: 0.02554278573 | P50: 0.01398531435 | Q50: 0.0005660582829 | R50: 1.590272678e-06 | S50: 2.409067143e-05 | T50: 0.005664326843 | U50: 0.04578416615
A51: 2004 | B51: 1 | C51: 3 | D51: 1 | G51: 0.02442783224 | H51: 0.01101605431 | I51: 0.00121485 | J51: 1.61e-06 | K51: 6.036563172e-05 | L51: 0.008736975792 | M51: 0.04545768797 | O51: 0.01969463476 | P51: 0.01338391021 | Q51: 0.0005660582829 | R51: 1.590272678e-06 | S51: 2.409067143e-05 | T51: 0.007994504676 | U51: 0.04166478887
A52: 2004 | B52: 1 | C52: 3 | D52: 2 | G52: 0.02300704612 | H52: 0.01060956592 | I52: 0.00121485 | J52: 1.61e-06 | K52: 6.036563172e-05 | L52: 0.009117611925 | M52: 0.0440110496 | O52: 0.01854914369 | P52: 0.0128900488 | Q52: 0.0005660582829 | R52: 1.590272678e-06 | S52: 2.409067143e-05 | T52: 0.008342794223 | U52: 0.04037372594
A53: 2004 | B53: 1 | C53: 3 | D53: 3 | G53: 0.02209938342 | H53: 0.01039475085 | I53: 0.00121485 | J53: 1.61e-06 | K53: 6.036563172e-05 | L53: 0.009659433906 | M53: 0.04343039381 | O53: 0.01781735196 | P53: 0.01262906011 | Q53: 0.0005660582829 | R53: 1.590272678e-06 | S53: 2.409067143e-05 | T53: 0.008838571992 | U53: 0.0398767233
A54: 2004 | B54: 1 | C54: 3 | D54: 4 | G54: 0.02162492296 | H54: 0.01021874644 | I54: 0.00121485 | J54: 1.61e-06 | K54: 6.036563172e-05 | L54: 0.01001708067 | M54: 0.0431375757 | O54: 0.01743482415 | P54: 0.01241522427 | Q54: 0.0005660582829 | R54: 1.590272678e-06 | S54: 2.409067143e-05 | T54: 0.009165825813 | U54: 0.03960761345
A55: 2004 | B55: 1 | C55: 3 | D55: 5 | G55: 0.02184543848 | H55: 0.0103573858 | I55: 0.00121485 | J55: 1.61e-06 | K55: 6.036563172e-05 | L55: 0.01018998123 | M55: 0.04366963113 | O55: 0.01761261203 | P55: 0.01258366359 | Q55: 0.0005660582829 | R55: 1.590272678e-06 | S55: 2.409067143e-05 | T55: 0.009324033223 | U55: 0.04011204807
A56: 2004 | B56: 1 | C56: 3 | D56: 6 | G56: 0.02277941518 | H56: 0.01050288228 | I56: 0.00121485 | J56: 1.61e-06 | K56: 6.036563172e-05 | L56: 0.01003008256 | M56: 0.04458920565 | O56: 0.01836561909 | P56: 0.01276043394 | Q56: 0.0005660582829 | R56: 1.590272678e-06 | S56: 2.409067143e-05 | T56: 0.009177722799 | U56: 0.04089551506
A57: 2004 | B57: 1 | C57: 3 | D57: 7 | G57: 0.02494880891 | H57: 0.01113954659 | I57: 0 | J57: 0 | K57: 6.036563172e-05 | L57: 0.01033320087 | M57: 0.046481922 | O57: 0.02011466569 | P57: 0.01353394665 | Q57: 0 | R57: 0 | S57: 2.409067143e-05 | T57: 0.009455082017 | U57: 0.04312778503
A58: 2004 | B58: 1 | C58: 3 | D58: 8 | G58: 0.02961298062 | H58: 0.01210302805 | I58: 0 | J58: 0 | K58: 6.036563172e-05 | L58: 0.009329569025 | M58: 0.05110594333 | O58: 0.0238750959 | P58: 0.01470452451 | Q58: 0 | R58: 0 | S58: 2.409067143e-05 | T58: 0.008536739139 | U58: 0.04714045023
A59: 2004 | B59: 1 | C59: 3 | D59: 9 | G59: 0.03214577217 | H59: 0.01299054495 | I59: 0 | J59: 0 | K59: 6.036563172e-05 | L59: 0.009654830833 | M59: 0.05485151359 | O59: 0.02591712747 | P59: 0.01578280955 | Q59: 0 | R59: 0 | S59: 2.409067143e-05 | T59: 0.00883436009 | U59: 0.05055838778
A60: 2004 | B60: 1 | C60: 3 | D60: 10 | G60: 0.03413846893 | H60: 0.01343003172 | I60: 0 | J60: 0 | K60: 6.036563172e-05 | L60: 0.01017698546 | M60: 0.05780585175 | O60: 0.02752371435 | P60: 0.0163167622 | Q60: 0 | R60: 0 | S60: 2.409067143e-05 | T60: 0.009312141846 | U60: 0.05317670908
A61: 2004 | B61: 1 | C61: 3 | D61: 11 | G61: 0.03476217329 | H61: 0.01349096061 | I61: 0 | J61: 0 | K61: 6.036563172e-05 | L61: 0.01011412123 | M61: 0.05842762077 | O61: 0.0280265682 | P61: 0.01639078752 | Q61: 0 | R61: 0 | S61: 2.409067143e-05 | T61: 0.00925461984 | U61: 0.05369606623
A62: 2004 | B62: 1 | C62: 3 | D62: 12 | G62: 0.03504112321 | H62: 0.01322886442 | I62: 0 | J62: 0 | K62: 6.036563172e-05 | L62: 0.008997017333 | M62: 0.05732737059 | O62: 0.02825146809 | P62: 0.01607235482 | Q62: 0 | R62: 0 | S62: 2.409067143e-05 | T62: 0.0082324478 | U62: 0.05258036138
A63: 2004 | B63: 1 | C63: 3 | D63: 13 | G63: 0.03553552448 | H63: 0.012836169 | I63: 0 | J63: 0 | K63: 6.036563172e-05 | L63: 0.007973247914 | M63: 0.05640530702 | O63: 0.02865007295 | P63: 0.01559525112 | Q63: 0 | R63: 0 | S63: 2.409067143e-05 | T63: 0.007295678648 | U63: 0.05156509338
A64: 2004 | B64: 1 | C64: 3 | D64: 14 | G64: 0.03356051304 | H64: 0.01266459462 | I64: 0 | J64: 0 | K64: 6.036563172e-05 | L64: 0.007990372368 | M64: 0.05427584565 | O64: 0.02705774463 | P64: 0.01538679753 | Q64: 0 | R64: 0 | S64: 2.409067143e-05 | T64: 0.00731134786 | U64: 0.04977998068
A65: 2004 | B65: 1 | C65: 3 | D65: 15 | G65: 0.03259524572 | H65: 0.01278784631 | I65: 0 | J65: 0 | K65: 6.036563172e-05 | L65: 0.008424939309 | M65: 0.05386839698 | O65: 0.0262795099 | P65: 0.01553654167 | Q65: 0 | R65: 0 | S65: 2.409067143e-05 | T65: 0.007708985158 | U65: 0.04954912741
A66: 2004 | B66: 1 | C66: 3 | D66: 16 | G66: 0.03229589068 | H66: 0.01271637823 | I66: 0 | J66: 0 | K66: 6.036563172e-05 | L66: 0.008299840281 | M66: 0.05337247482 | O66: 0.02603815864 | P66: 0.01544971181 | Q66: 0 | R66: 0 | S66: 2.409067143e-05 | T66: 0.007594517086 | U66: 0.04910647821
A67: 2004 | B67: 1 | C67: 3 | D67: 17 | G67: 0.03601309934 | H67: 0.0125414047 | I67: 0 | J67: 0 | K67: 6.036563172e-05 | L67: 0.006763711486 | M67: 0.05537858116 | O67: =G67*X$5 -> 0.02903511171 | P67: =H67*Y$5 -> 0.01523712844 | Q67: =I67*Z$5 -> 0 | R67: =J67*AA$5 -> 0 | S67: =K67*AB$5 -> 2.409067143e-05 | T67: =L67*AC$5 -> 0.006188929028 | U67: =SUM(O67:T67) -> 0.05048525986
A68: 2004 | B68: 1 | C68: 3 | D68: 18 | G68: 0.04085395216 | H68: 0.01260736674 | I68: 0 | J68: 0 | K68: 6.036563172e-05 | L68: 0.006588076275 | M68: 0.0601097608 | O68: 0.03293798886 | P68: 0.01531726874 | Q68: 0 | R68: 0 | S68: 2.409067143e-05 | T68: 0.006028219357 | U68: 0.05430756763
A69: 2004 | B69: 1 | C69: 3 | D69: 19 | G69: 0.04171736261 | H69: 0.01214818764 | I69: 0.00121485 | J69: 1.61e-06 | K69: 6.036563172e-05 | L69: 0.004086442014 | M69: 0.0592288179 | O69: 0.03363410276 | P69: 0.01475939097 | Q69: 0.0005660582829 | R69: 1.590272678e-06 | S69: 2.409067143e-05 | T69: 0.003739174809 | U69: 0.05272440777
A70: 2004 | B70: 1 | C70: 3 | D70: 20 | G70: 0.03978957158 | H70: 0.01169290839 | I70: 0.00121485 | J70: 1.61e-06 | K70: 6.036563172e-05 | L70: 0.004165603698 | M70: 0.05692490931 | O70: 0.03207984531 | P70: 0.01420625132 | Q70: 0.0005660582829 | R70: 1.590272678e-06 | S70: 2.409067143e-05 | T70: 0.003811609307 | U70: 0.05068944516
A71: 2004 | B71: 1 | C71: 3 | D71: 21 | G71: 0.03703288034 | H71: 0.01166134244 | I71: 0.00121485 | J71: 1.61e-06 | K71: 6.036563172e-05 | L71: 0.006026809936 | M71: 0.05599785834 | O71: 0.02985729741 | P71: 0.01416790039 | Q71: 0.0005660582829 | R71: 1.590272678e-06 | S71: 2.409067143e-05 | T71: 0.005514649618 | U71: 0.05013158664
A72: 2004 | B72: 1 | C72: 3 | D72: 22 | G72: 0.03372378054 | H72: 0.0112217038 | I72: 0.00121485 | J72: 1.61e-06 | K72: 6.036563172e-05 | L72: 0.006304110926 | M72: 0.05252642089 | O72: 0.02718937701 | P72: 0.01363376321 | Q72: 0.0005660582829 | R72: 1.590272678e-06 | S72: 2.409067143e-05 | T72: 0.005768385477 | U72: 0.04718326493
A73: 2004 | B73: 1 | C73: 3 | D73: 23 | G73: 0.03185394518 | H73: 0.01096162569 | I73: 0.00121485 | J73: 1.61e-06 | K73: 6.036563172e-05 | L73: 0.005677799171 | M73: 0.04977019568 | O73: 0.0256818456 | P73: 0.01331778238 | Q73: 0.0005660582829 | R73: 1.590272678e-06 | S73: 2.409067143e-05 | T73: 0.005195297904 | U73: 0.04478666511
A74: 2004 | B74: 1 | C74: 3 | D74: 24 | G74: 0.02821337266 | H74: 0.01076761381 | I74: 0.00121485 | J74: 1.61e-06 | K74: 6.036563172e-05 | L74: 0.007614679364 | M74: 0.04787249147 | O74: 0.02274667946 | P74: 0.01308206844 | Q74: 0.0005660582829 | R74: 1.590272678e-06 | S74: 2.409067143e-05 | T74: 0.006967581372 | U74: 0.0433880685
A75: 2004 | B75: 1 | C75: 4 | D75: 1 | G75: 0.02600596528 | H75: 0.01120667326 | I75: 0.00121485 | J75: 1.61e-06 | K75: 6.036563172e-05 | L75: 0.008567402789 | M75: 0.04705686696 | O75: 0.02096698482 | P75: 0.01361550192 | Q75: 0.0005660582829 | R75: 1.590272678e-06 | S75: 2.409067143e-05 | T75: 0.007839342043 | U75: 0.04301356801
A76: 2004 | B76: 1 | C76: 4 | D76: 2 | G76: 0.02410819843 | H76: 0.01094735683 | I76: 0.00121485 | J76: 1.61e-06 | K76: 6.036563172e-05 | L76: 0.009152089109 | M76: 0.04548447 | O76: 0.01943693399 | P76: 0.01330044649 | Q76: 0.0005660582829 | R76: 1.590272678e-06 | S76: 2.409067143e-05 | T76: 0.008374341526 | U76: 0.04170346123
A77: 2004 | B77: 1 | C77: 4 | D77: 3 | G77: 0.02325114355 | H77: 0.01074505935 | I77: 0.00121485 | J77: 1.61e-06 | K77: 6.036563172e-05 | L77: 0.009546148223 | M77: 0.04481917676 | O77: 0.01874594419 | P77: 0.01305466599 | Q77: 0.0005660582829 | R77: 1.590272678e-06 | S77: 2.409067143e-05 | T77: 0.008734913364 | U77: 0.04112726278
A78: 2004 | B78: 1 | C78: 4 | D78: 4 | G78: 0.02323087274 | H78: 0.01053567527 | I78: 0.00121485 | J78: 1.61e-06 | K78: 6.036563172e-05 | L78: 0.009523538356 | M78: 0.044566912 | O78: 0.0187296011 | P78: 0.01280027566 | Q78: 0.0005660582829 | R78: 1.590272678e-06 | S78: 2.409067143e-05 | T78: 0.008714224891 | U78: 0.04083584088
A79: 2004 | B79: 1 | C79: 4 | D79: 5 | G79: 0.0228412476 | H79: 0.01072398499 | I79: 0.00121485 | J79: 1.61e-06 | K79: 6.036563172e-05 | L79: 0.01022807118 | M79: 0.04507012939 | O79: 0.0184154707 | P79: 0.01302906178 | Q79: 0.0005660582829 | R79: 1.590272678e-06 | S79: 2.409067143e-05 | T79: 0.00935888628 | U79: 0.04139515798
A80: 2004 | B80: 1 | C80: 4 | D80: 6 | G80: 0.02424829662 | H80: 0.01071967304 | I80: 0.00121485 | J80: 1.61e-06 | K80: 6.036563172e-05 | L80: 0.009663167704 | M80: 0.04590796299 | O80: 0.0195498864 | P80: 0.013023823 | Q80: 0.0005660582829 | R80: 1.590272678e-06 | S80: 2.409067143e-05 | T80: 0.008841988491 | U80: 0.04200743712
A81: 2004 | B81: 1 | C81: 4 | D81: 7 | G81: 0.02734089232 | H81: 0.01132386649 | I81: 0 | J81: 0 | K81: 6.036563172e-05 | L81: 0.009416608158 | M81: 0.0481417326 | O81: 0.02204325308 | P81: 0.01375788536 | Q81: 0 | R81: 0 | S81: 2.409067143e-05 | T81: 0.008616381657 | U81: 0.04444161077
A82: 2004 | B82: 1 | C82: 4 | D82: 8 | G82: 0.03023534734 | H82: 0.01227148117 | I82: 0 | J82: 0 | K82: 6.036563172e-05 | L82: 0.00926829309 | M82: 0.05183548723 | O82: 0.0243768713 | P82: 0.01490918594 | Q82: 0 | R82: 0 | S82: 2.409067143e-05 | T82: 0.008480670453 | U82: 0.04779081837
A83: 2004 | B83: 1 | C83: 4 | D83: 9 | G83: 0.03485294512 | H83: 0.01245249845 | I83: 0 | J83: 0 | K83: 6.036563172e-05 | L83: 0.007673289162 | M83: 0.05503909837 | O83: 0.02809975186 | P83: 0.01512911215 | Q83: 0 | R83: 0 | S83: 2.409067143e-05 | T83: 0.007021210491 | U83: 0.05027416517
A84: 2004 | B84: 1 | C84: 4 | D84: 10 | G84: 0.03726651222 | H84: 0.01359189349 | I84: 0 | J84: 0 | K84: 6.036563172e-05 | L84: 0.006947506656 | M84: 0.057866278 | O84: 0.0300456602 | P84: 0.0165134155 | Q84: 0 | R84: 0 | S84: 2.409067143e-05 | T84: 0.006357105224 | U84: 0.0529402716
A85: 2004 | B85: 1 | C85: 4 | D85: 11 | G85: 0.03638347501 | H85: 0.01481906475 | I85: 0 | J85: 0 | K85: 6.036563172e-05 | L85: 0.00919004227 | M85: 0.06045294767 | O85: 0.02933372248 | P85: 0.01800436222 | Q85: 0 | R85: 0 | S85: 2.409067143e-05 | T85: 0.008409069414 | U85: 0.05577124478
A86: 2004 | B86: 1 | C86: 4 | D86: 12 | G86: 0.03617600107 | H86: 0.01480453034 | I86: 0 | J86: 0 | K86: 6.036563172e-05 | L86: 0.008667029738 | M86: 0.05970792677 | O86: 0.0291664492 | P86: 0.01798670369 | Q86: 0 | R86: 0 | S86: 2.409067143e-05 | T86: 0.007930502661 | U86: 0.05510774622
A87: 2004 | B87: 1 | C87: 4 | D87: 13 | G87: 0.03529558915 | H87: 0.01470371709 | I87: 0 | J87: 0 | K87: 6.036563172e-05 | L87: 0.008200031656 | M87: 0.05825970353 | O87: 0.02845662808 | P87: 0.01786422104 | Q87: 0 | R87: 0 | S87: 2.409067143e-05 | T87: 0.007503190232 | U87: 0.05384813003
A88: 2004 | B88: 1 | C88: 4 | D88: 14 | G88: 0.03405069815 | H88: 0.01486961534 | I88: 0 | J88: 0 | K88: 6.036563172e-05 | L88: 0.008450347373 | M88: 0.05743102649 | O88: 0.02745295025 | P88: 0.01806577845 | Q88: 0 | R88: 0 | S88: 2.409067143e-05 | T88: 0.007732234036 | U88: 0.0532750534
A89: 2004 | B89: 1 | C89: 4 | D89: 15 | G89: 0.03401205076 | H89: 0.01474751865 | I89: 0 | J89: 0 | K89: 6.036563172e-05 | L89: 0.007161556535 | M89: 0.05598149158 | O89: 0.02742179128 | P89: 0.01791743758 | Q89: 0 | R89: 0 | S89: 2.409067143e-05 | T89: 0.006552965073 | U89: 0.0519162846
A90: 2004 | B90: 1 | C90: 4 | D90: 16 | G90: 0.03577250971 | H90: 0.0146403806 | I90: 0 | J90: 0 | K90: 6.036563172e-05 | L90: 0.006451933542 | M90: 0.05692518948 | O90: 0.02884113933 | P90: 0.01778727064 | Q90: 0 | R90: 0 | S90: 2.409067143e-05 | T90: 0.005903646078 | U90: 0.05255614671
A91: 2004 | B91: 1 | C91: 4 | D91: 17 | G91: 0.03848701791 | H91: 0.01448461654 | I91: 0 | J91: 0 | K91: 6.036563172e-05 | L91: 0.005691703789 | M91: 0.05872370386 | O91: 0.03102967767 | P91: 0.01759802572 | Q91: 0 | R91: 0 | S91: 2.409067143e-05 | T91: 0.005208020903 | U91: 0.05385981497
A92: 2004 | B92: 1 | C92: 4 | D92: 18 | G92: 0.0449054011 | H92: 0.01411815673 | I92: 0 | J92: 0 | K92: 6.036563172e-05 | L92: 0.004119088829 | M92: 0.06320301229 | O92: 0.03620441898 | P92: 0.01715279688 | Q92: 0 | R92: 0 | S92: 2.409067143e-05 | T92: 0.003769047287 | U92: 0.05715035382
A93: 2004 | B93: 1 | C93: 4 | D93: 19 | G93: 0.04541738509 | H93: 0.0138148036 | I93: 0.00121485 | J93: 1.61e-06 | K93: 6.036563172e-05 | L93: 0.0034233365 | M93: 0.06393235082 | O93: 0.03661719968 | P93: 0.01678423924 | Q93: 0.0005660582829 | R93: 1.590272678e-06 | S93: 2.409067143e-05 | T93: 0.003132420223 | U93: 0.05712559837
A94: 2004 | B94: 1 | C94: 4 | D94: 20 | G94: 0.04217673941 | H94: 0.01376117852 | I94: 0.00121485 | J94: 1.61e-06 | K94: 6.036563172e-05 | L94: 0.005122990984 | M94: 0.06233773455 | O94: 0.03400446957 | P94: 0.01671908767 | Q94: 0.0005660582829 | R94: 1.590272678e-06 | S94: 2.409067143e-05 | T94: 0.004687637502 | U94: 0.05600293396
A95: 2004 | B95: 1 | C95: 4 | D95: 21 | G95: 0.04072750417 | H95: 0.01366435842 | I95: 0.00121485 | J95: 1.61e-06 | K95: 6.036563172e-05 | L95: 0.005777628232 | M95: 0.06144631645 | O95: 0.03283604175 | P95: 0.01660145647 | Q95: 0.0005660582829 | R95: 1.590272678e-06 | S95: 2.409067143e-05 | T95: 0.005286643458 | U95: 0.05531588091
A96: 2004 | B96: 1 | C96: 4 | D96: 22 | G96: 0.03956157888 | H96: 0.01327545864 | I96: 0.00121485 | J96: 1.61e-06 | K96: 6.036563172e-05 | L96: 0.004996733003 | M96: 0.05911059616 | O96: 0.03189602904 | P96: 0.01612896428 | Q96: 0.0005660582829 | R96: 1.590272678e-06 | S96: 2.409067143e-05 | T96: 0.004572108967 | U96: 0.05318884151
A97: 2004 | B97: 1 | C97: 4 | D97: 23 | G97: 0.0352747528 | H97: 0.01358217727 | I97: 0.00121485 | J97: 1.61e-06 | K97: 6.036563172e-05 | L97: 0.003424442568 | M97: 0.05355819827 | O97: 0.02843982903 | P97: 0.01650161082 | Q97: 0.0005660582829 | R97: 1.590272678e-06 | S97: 2.409067143e-05 | T97: 0.003133432296 | U97: 0.04866661138
A98: 2004 | B98: 1 | C98: 4 | D98: 24 | G98: 0.02811204369 | H98: 0.01383496144 | I98: 0.00121485 | J98: 1.61e-06 | K98: 6.036563172e-05 | L98: 0.006981747456 | M98: 0.05020557821 | O98: 0.02266498424 | P98: 0.01680872991 | Q98: 0.0005660582829 | R98: 1.590272678e-06 | S98: 2.409067143e-05 | T98: 0.006388436229 | U98: 0.04645388961
A99: 2004 | B99: 1 | C99: 5 | D99: 1 | G99: 0.03116809127 | H99: 0.01472465089 | I99: 0.00121485 | J99: 1.61e-06 | K99: 6.036563172e-05 | L99: 0.01029962289 | M99: 0.05746919068 | O99: 0.02512888445 | P99: 0.01788965448 | Q99: 0.0005660582829 | R99: 1.590272678e-06 | S99: 2.409067143e-05 | T99: 0.009424357506 | U99: 0.05303463566
A100: 2004 | B100: 1 | C100: 5 | D100: 2 | G100: 0.02883425671 | H100: 0.01471370908 | I100: 0.00121485 | J100: 1.61e-06 | K100: 6.036563172e-05 | L100: 0.01127513841 | M100: 0.05609992983 | O100: 0.02324725947 | P100: 0.01787636078 | Q100: 0.0005660582829 | R100: 1.590272678e-06 | S100: 2.409067143e-05 | T100: 0.01031697339 | U100: 0.05203233287
A101: 2004 | B101: 1 | C101: 5 | D101: 3 | G101: 0.02868237404 | H101: 0.01475445282 | I101: 0.00121485 | J101: 1.61e-06 | K101: 6.036563172e-05 | L101: 0.01183753041 | M101: 0.05655118291 | O101: 0.02312480597 | P101: 0.01792586222 | Q101: 0.0005660582829 | R101: 1.590272678e-06 | S101: 2.409067143e-05 | T101: 0.01083157313 | U101: 0.05247398054
A102: 2004 | B102: 1 | C102: 5 | D102: 4 | G102: 0.02963947813 | H102: 0.01475041826 | I102: 0.00121485 | J102: 1.61e-06 | K102: 6.036563172e-05 | L102: 0.0111720853 | M102: 0.05683880732 | O102: 0.02389645919 | P102: 0.01792096045 | Q102: 0.0005660582829 | R102: 1.590272678e-06 | S102: 2.409067143e-05 | T102: 0.01022267777 | U102: 0.05263183663
A103: 2004 | B103: 1 | C103: 5 | D103: 5 | G103: 0.03021587199 | H103: 0.01497237089 | I103: 0.00121485 | J103: 1.61e-06 | K103: 6.036563172e-05 | L103: 0.01165344219 | M103: 0.0581185107 | O103: 0.02436116954 | P103: 0.01819062089 | Q103: 0.0005660582829 | R103: 1.590272678e-06 | S103: 2.409067143e-05 | T103: 0.01066312878 | U103: 0.05380665844
A104: 2004 | B104: 1 | C104: 5 | D104: 6 | G104: 0.03229317591 | H104: 0.01572508365 | I104: 0.00121485 | J104: 1.61e-06 | K104: 6.036563172e-05 | L104: 0.01129842433 | M104: 0.06059350952 | O104: 0.02603596989 | P104: 0.01910512618 | Q104: 0.0005660582829 | R104: 1.590272678e-06 | S104: 2.409067143e-05 | T104: 0.01033828047 | U104: 0.05607111576
A105: 2004 | B105: 1 | C105: 5 | D105: 7 | G105: 0.0394842758 | H105: 0.01686649935 | I105: 0 | J105: 0 | K105: 6.036563172e-05 | L105: 0.01030699255 | M105: 0.06671813333 | O105: 0.0318337044 | P105: 0.02049188453 | Q105: 0 | R105: 0 | S105: 2.409067143e-05 | T105: 0.009431100883 | U105: 0.06178078048
A106: 2004 | B106: 1 | C106: 5 | D106: 8 | G106: 0.04576678263 | H106: 0.01901212201 | I106: 0 | J106: 0 | K106: 6.036563172e-05 | L106: 0.01188046939 | M106: 0.07671973967 | O106: 0.03689889709 | P106: 0.02309870002 | Q106: 0 | R106: 0 | S106: 2.409067143e-05 | T106: 0.01087086314 | U106: 0.07089255092
A107: 2004 | B107: 1 | C107: 5 | D107: 9 | G107: 0.04795701316 | H107: 0.02037475354 | I107: 0 | J107: 0 | K107: 6.036563172e-05 | L107: 0.01270750292 | M107: 0.08109963524 | O107: 0.03866474311 | P107: 0.02475422363 | Q107: 0 | R107: 0 | S107: 2.409067143e-05 | T107: 0.01162761508 | U107: 0.07507067249
A108: 2004 | B108: 1 | C108: 5 | D108: 10 | G108: 0.04482842938 | H108: 0.02124267704 | I108: 0 | J108: 0 | K108: 6.036563172e-05 | L108: 0.01415867465 | M108: 0.0802901467 | O108: 0.03614236149 | P108: 0.02580870375 | Q108: 0 | R108: 0 | S108: 2.409067143e-05 | T108: 0.01295546576 | U108: 0.07493062167
A109: 2004 | B109: 1 | C109: 5 | D109: 11 | G109: 0.0431548308 | H109: 0.02190280123 | I109: 0 | J109: 0 | K109: 6.036563172e-05 | L109: 0.01388900039 | M109: 0.07900699806 | O109: 0.03479304354 | P109: 0.02661071894 | Q109: 0 | R109: 0 | S109: 2.409067143e-05 | T109: 0.01270870851 | U109: 0.07413656166
A110: 2004 | B110: 1 | C110: 5 | D110: 12 | G110: 0.04228318373 | H110: 0.02178691946 | I110: 0 | J110: 0 | K110: 6.036563172e-05 | L110: 0.01362267537 | M110: 0.07775314419 | O110: 0.03409028897 | P110: 0.02646992885 | Q110: 0 | R110: 0 | S110: 2.409067143e-05 | T110: 0.01246501588 | U110: 0.07304932437
A111: 2004 | B111: 1 | C111: 5 | D111: 13 | G111: 0.04210542413 | H111: 0.02136562022 | I111: 0 | J111: 0 | K111: 6.036563172e-05 | L111: 0.01223415333 | M111: 0.07576556331 | O111: 0.03394697251 | P111: 0.02595807305 | Q111: 0 | R111: 0 | S111: 2.409067143e-05 | T111: 0.0111944909 | U111: 0.07112362714
A112: 2004 | B112: 1 | C112: 5 | D112: 14 | G112: 0.04042996008 | H112: 0.02150719788 | I112: 0 | J112: 0 | K112: 6.036563172e-05 | L112: 0.01309632661 | M112: 0.07509385021 | O112: 0.03259615054 | P112: 0.02613008226 | Q112: 0 | R112: 0 | S112: 2.409067143e-05 | T112: 0.01198339641 | U112: 0.07073371988
A113: 2004 | B113: 1 | C113: 5 | D113: 15 | G113: 0.03965786696 | H113: 0.02097670353 | I113: 0 | J113: 0 | K113: 6.036563172e-05 | L113: 0.01212027003 | M113: 0.07281520614 | O113: 0.0319736601 | P113: 0.02548556031 | Q113: 0 | R113: 0 | S113: 2.409067143e-05 | T113: 0.01109028544 | U113: 0.06857359652
A114: 2004 | B114: 1 | C114: 5 | D114: 16 | G114: 0.04221926356 | H114: 0.02034662026 | I114: 0 | J114: 0 | K114: 6.036563172e-05 | L114: 0.01134636116 | M114: 0.07397261061 | O114: 0.03403875413 | P114: 0.02472004322 | Q114: 0 | R114: 0 | S114: 2.409067143e-05 | T114: 0.01038214361 | U114: 0.06916503162
A115: 2004 | B115: 1 | C115: 5 | D115: 17 | G115: 0.04686264683 | H115: 0.02034818767 | I115: 0 | J115: 0 | K115: 6.036563172e-05 | L115: 0.01126732733 | M115: 0.07853852747 | O115: 0.03778242392 | P115: 0.02472194754 | Q115: 0 | R115: 0 | S115: 2.409067143e-05 | T115: 0.0103098261 | U115: 0.07283828823
A116: 2004 | B116: 1 | C116: 5 | D116: 18 | G116: 0.05448266783 | H116: 0.01995700524 | I116: 0 | J116: 0 | K116: 6.036563172e-05 | L116: 0.01071081831 | M116: 0.08521085701 | O116: 0.04392597071 | P116: 0.02424668203 | Q116: 0 | R116: 0 | S116: 2.409067143e-05 | T116: 0.009800609403 | U116: 0.07799735282
A117: 2004 | B117: 1 | C117: 5 | D117: 19 | G117: 0.0541315461 | H117: 0.0196163043 | I117: 0.00121485 | J117: 1.61e-06 | K117: 6.036563172e-05 | L117: 0.009121779721 | M117: 0.08414645575 | O117: 0.0436428832 | P117: 0.02383274882 | Q117: 0.0005660582829 | R117: 1.590272678e-06 | S117: 2.409067143e-05 | T117: 0.008346607839 | U117: 0.07641397909
A118: 2004 | B118: 1 | C118: 5 | D118: 20 | G118: 0.0535609451 | H118: 0.01899782815 | I118: 0.00121485 | J118: 1.61e-06 | K118: 6.036563172e-05 | L118: 0.008507567435 | M118: 0.08234316632 | O118: 0.04318284327 | P118: 0.02308133375 | Q118: 0.0005660582829 | R118: 1.590272678e-06 | S118: 2.409067143e-05 | T118: 0.007784591518 | U118: 0.07464050776
A119: 2004 | B119: 1 | C119: 5 | D119: 21 | G119: 0.04981199221 | H119: 0.01903059175 | I119: 0.00121485 | J119: 1.61e-06 | K119: 6.036563172e-05 | L119: 0.009387069735 | M119: 0.07950647932 | O119: 0.0401602968 | P119: 0.02312113975 | Q119: 0.0005660582829 | R119: 1.590272678e-06 | S119: 2.409067143e-05 | T119: 0.008589353419 | U119: 0.0724625292
A120: 2004 | B120: 1 | C120: 5 | D120: 22 | G120: 0.04651439747 | H120: 0.01806778063 | I120: 0.00121485 | J120: 1.61e-06 | K120: 6.036563172e-05 | L120: 0.008688870573 | M120: 0.07454787431 | O120: 0.03750165222 | P120: 0.02195137631 | Q120: 0.0005660582829 | R120: 1.590272678e-06 | S120: 2.409067143e-05 | T120: 0.007950487455 | U120: 0.06799525522
A121: 2004 | B121: 1 | C121: 5 | D121: 23 | G121: 0.04360238155 | H121: 0.01728807309 | I121: 0.00121485 | J121: 1.61e-06 | K121: 6.036563172e-05 | L121: 0.007439210261 | M121: 0.06960649053 | O121: 0.03515387574 | P121: 0.02100407382 | Q121: 0.0005660582829 | R121: 1.590272678e-06 | S121: 2.409067143e-05 | T121: 0.006807023693 | U121: 0.06355671248
A122: 2004 | B122: 1 | C122: 5 | D122: 24 | G122: 0.0351058324 | H122: 0.01686744068 | I122: 0.00121485 | J122: 1.61e-06 | K122: 6.036563172e-05 | L122: 0.01027826311 | M122: 0.06352836182 | O122: 0.02830363907 | P122: 0.02049302819 | Q122: 0.0005660582829 | R122: 1.590272678e-06 | S122: 2.409067143e-05 | T122: 0.009404812882 | U122: 0.05879321937
A123: 2004 | B123: 1 | C123: 6 | D123: 1 | G123: 0.0300479337 | H123: 0.01659189987 | I123: 0.00121485 | J123: 1.61e-06 | K123: 6.036563172e-05 | L123: 0.01102078003 | M123: 0.05893743923 | O123: 0.02422577139 | P123: 0.02015826101 | Q123: 0.0005660582829 | R123: 1.590272678e-06 | S123: 2.409067143e-05 | T123: 0.01008423046 | U123: 0.0550600021
A124: 2004 | B124: 1 | C124: 6 | D124: 2 | G124: 0.02933352279 | H124: 0.01590407728 | I124: 0.00121485 | J124: 1.61e-06 | K124: 6.036563172e-05 | L124: 0.01157352827 | M124: 0.05808795398 | O124: 0.02364978651 | P124: 0.01932259377 | Q124: 0.0005660582829 | R124: 1.590272678e-06 | S124: 2.409067143e-05 | T124: 0.01059000598 | U124: 0.05415412549
A125: 2004 | B125: 1 | C125: 6 | D125: 3 | G125: 0.02932419205 | H125: 0.01577156635 | I125: 0.00121485 | J125: 1.61e-06 | K125: 6.036563172e-05 | L125: 0.01145478868 | M125: 0.05782737271 | O125: 0.02364226372 | P125: 0.01916160015 | Q125: 0.0005660582829 | R125: 1.590272678e-06 | S125: 2.409067143e-05 | T125: 0.01048135692 | U125: 0.05387696002
A126: 2004 | B126: 1 | C126: 6 | D126: 4 | G126: 0.02980617566 | H126: 0.0154727676 | I126: 0.00121485 | J126: 1.61e-06 | K126: 6.036563172e-05 | L126: 0.01181360615 | M126: 0.05836937505 | O126: 0.02403085699 | P126: 0.01879857583 | Q126: 0.0005660582829 | R126: 1.590272678e-06 | S126: 2.409067143e-05 | T126: 0.01080968196 | U126: 0.05423085401
A127: 2004 | B127: 1 | C127: 6 | D127: 5 | G127: 0.03101200328 | H127: 0.01556284248 | I127: 0.00121485 | J127: 1.61e-06 | K127: 6.036563172e-05 | L127: 0.01186575577 | M127: 0.05971742716 | O127: 0.02500304046 | P127: 0.01890801193 | Q127: 0.0005660582829 | R127: 1.590272678e-06 | S127: 2.409067143e-05 | T127: 0.01085739989 | U127: 0.05536019151
A128: 2004 | B128: 1 | C128: 6 | D128: 6 | G128: 0.03323665872 | H128: 0.01612590001 | I128: 0.00121485 | J128: 1.61e-06 | K128: 6.036563172e-05 | L128: 0.01122694404 | M128: 0.0618663284 | O128: 0.02679664112 | P128: 0.01959209638 | Q128: 0.0005660582829 | R128: 1.590272678e-06 | S128: 2.409067143e-05 | T128: 0.01027287459 | U128: 0.05725335133
A129: 2004 | B129: 1 | C129: 6 | D129: 7 | G129: 0.04017671575 | H129: 0.01707307898 | I129: 0 | J129: 0 | K129: 6.036563172e-05 | L129: 0.01062588872 | M129: 0.06793604908 | O129: 0.03239197546 | P129: 0.0207428676 | Q129: 0 | R129: 0 | S129: 2.409067143e-05 | T129: 0.00972289715 | U129: 0.06288183088
A130: 2004 | B130: 1 | C130: 6 | D130: 8 | G130: 0.04584785375 | H130: 0.01893796012 | I130: 0 | J130: 0 | K130: 6.036563172e-05 | L130: 0.01228304395 | M130: 0.07712922345 | O130: 0.03696425967 | P130: 0.02300859733 | Q130: 0 | R130: 0 | S130: 2.409067143e-05 | T130: 0.01123922678 | U130: 0.07123617444
A131: 2004 | B131: 1 | C131: 6 | D131: 9 | G131: 0.0467333851 | H131: 0.02042858924 | I131: 0 | J131: 0 | K131: 6.036563172e-05 | L131: 0.01386766758 | M131: 0.08109000754 | O131: =G131*X$5 -> 0.03767820826 | P131: =H131*Y$5 -> 0.02481963109 | Q131: =I131*Z$5 -> 0 | R131: =J131*AA$5 -> 0 | S131: =K131*AB$5 -> 2.409067143e-05 | T131: =L131*AC$5 -> 0.01268918856 | U131: =SUM(O131:T131) -> 0.07521111858
A132: 2004 | B132: 1 | C132: 6 | D132: 10 | G132: 0.04274883839 | H132: 0.0213434941 | I132: 0 | J132: 0 | K132: 6.036563172e-05 | L132: 0.01633972 | M132: 0.08049241813 | O132: 0.03446571723 | P132: 0.02593119102 | Q132: 0 | R132: 0 | S132: 2.409067143e-05 | T132: 0.01495116515 | U132: 0.07537216407
A133: 2004 | B133: 1 | C133: 6 | D133: 11 | G133: 0.04183398523 | H133: 0.02183410239 | I133: 0 | J133: 0 | K133: 6.036563172e-05 | L133: 0.0161802713 | M133: 0.07990872455 | O133: 0.03372812829 | P133: 0.02652725356 | Q133: 0 | R133: 0 | S133: 2.409067143e-05 | T133: 0.01480526645 | U133: 0.07508473897
A134: 2004 | B134: 1 | C134: 6 | D134: 12 | G134: 0.04243041456 | H134: 0.02146992552 | I134: 0 | J134: 0 | K134: 6.036563172e-05 | L134: 0.01466770587 | M134: 0.07862841158 | O134: 0.03420899198 | P134: 0.02608479836 | Q134: 0 | R134: 0 | S134: 2.409067143e-05 | T134: 0.01342123933 | U134: 0.07373912035
A135: 2004 | B135: 1 | C135: 6 | D135: 13 | G135: 0.0403856288 | H135: 0.02152645428 | I135: 0 | J135: 0 | K135: 6.036563172e-05 | L135: 0.01440109744 | M135: 0.07637354615 | O135: 0.032560409 | P135: 0.02615347774 | Q135: 0 | R135: 0 | S135: 2.409067143e-05 | T135: 0.01317728738 | U135: 0.07191526478
A136: 2004 | B136: 1 | C136: 6 | D136: 14 | G136: 0.03909488943 | H136: 0.02153264393 | I136: 0 | J136: 0 | K136: 6.036563172e-05 | L136: 0.01490391544 | M136: 0.07559181443 | O136: 0.0315197665 | P136: 0.02616099783 | Q136: 0 | R136: 0 | S136: 2.409067143e-05 | T136: 0.01363737574 | U136: 0.07134223074
A137: 2004 | B137: 1 | C137: 6 | D137: 15 | G137: 0.03835442051 | H137: 0.0210916108 | I137: 0 | J137: 0 | K137: 6.036563172e-05 | L137: 0.01381144534 | M137: 0.07331784228 | O137: 0.03092277267 | P137: 0.02562516643 | Q137: 0 | R137: 0 | S137: 2.409067143e-05 | T137: 0.01263774411 | U137: 0.06920977389
A138: 2004 | B138: 1 | C138: 6 | D138: 16 | G138: 0.03883117736 | H138: 0.02087957041 | I138: 0 | J138: 0 | K138: 6.036563172e-05 | L138: 0.01476623274 | M138: 0.07453734614 | O138: 0.03130715194 | P138: 0.02536754883 | Q138: 0 | R138: 0 | S138: 2.409067143e-05 | T138: 0.01351139335 | U138: 0.07021018479
A139: 2004 | B139: 1 | C139: 6 | D139: 17 | G139: 0.04397414356 | H139: 0.02056664455 | I139: 0 | J139: 0 | K139: 6.036563172e-05 | L139: 0.01337234036 | M139: 0.0779734941 | O139: 0.03545360422 | P139: 0.02498736083 | Q139: 0 | R139: 0 | S139: 2.409067143e-05 | T139: 0.01223595442 | U139: 0.07270101014
A140: 2004 | B140: 1 | C140: 6 | D140: 18 | G140: 0.05009517902 | H140: 0.0207556416 | I140: 0 | J140: 0 | K140: 6.036563172e-05 | L140: 0.01274637355 | M140: 0.08365755981 | O140: 0.04038861264 | P140: 0.02521698203 | Q140: 0 | R140: 0 | S140: 2.409067143e-05 | T140: 0.01166318248 | U140: 0.07729286781
A141: 2004 | B141: 1 | C141: 6 | D141: 19 | G141: 0.05213215523 | H141: 0.02031994206 | I141: 0.00121485 | J141: 1.61e-06 | K141: 6.036563172e-05 | L141: 0.01089972223 | M141: 0.08462864516 | O141: 0.04203089928 | P141: 0.02468763065 | Q141: 0.0005660582829 | R141: 1.590272678e-06 | S141: 2.409067143e-05 | T141: 0.009973460202 | U141: 0.07728372936
A142: 2004 | B142: 1 | C142: 6 | D142: 20 | G142: 0.05260030956 | H142: 0.01959236264 | I142: 0.00121485 | J142: 1.61e-06 | K142: 6.036563172e-05 | L142: 0.00868886688 | M142: 0.0821583647 | O142: 0.04240834285 | P142: 0.023803661 | Q142: 0.0005660582829 | R142: 1.590272678e-06 | S142: 2.409067143e-05 | T142: 0.007950484076 | U142: 0.07475422715
A143: 2004 | B143: 1 | C143: 6 | D143: 21 | G143: 0.0505092563 | H143: 0.01900583069 | I143: 0.00121485 | J143: 1.61e-06 | K143: 6.036563172e-05 | L143: 0.008380241815 | M143: 0.07917215444 | O143: 0.04072245728 | P143: 0.02309105641 | Q143: 0.0005660582829 | R143: 1.590272678e-06 | S143: 2.409067143e-05 | T143: 0.007668086071 | U143: 0.07207333898
A144: 2004 | B144: 1 | C144: 6 | D144: 22 | G144: 0.04689117577 | H144: 0.01820659824 | I144: 0.00121485 | J144: 1.61e-06 | K144: 6.036563172e-05 | L144: 0.008682156892 | M144: 0.07505675653 | O144: 0.03780542502 | P144: 0.0221200322 | Q144: 0.0005660582829 | R144: 1.590272678e-06 | S144: 2.409067143e-05 | T144: 0.007944344304 | U144: 0.06846154075
A145: 2004 | B145: 1 | C145: 6 | D145: 23 | G145: 0.04449199493 | H145: 0.01727871177 | I145: 0.00121485 | J145: 1.61e-06 | K145: 6.036563172e-05 | L145: 0.007442173168 | M145: 0.0704897055 | O145: 0.03587111542 | P145: 0.02099270032 | Q145: 0.0005660582829 | R145: 1.590272678e-06 | S145: 2.409067143e-05 | T145: 0.006809734811 | U145: 0.06426528978
A146: 2004 | B146: 1 | C146: 6 | D146: 24 | G146: 0.03626894225 | H146: 0.01696754304 | I146: 0.00121485 | J146: 1.61e-06 | K146: 6.036563172e-05 | L146: 0.009726012652 | M146: 0.06423932357 | O146: 0.02924138186 | P146: 0.02061464715 | Q146: 0.0005660582829 | R146: 1.590272678e-06 | S146: 2.409067143e-05 | T146: 0.008899492854 | U146: 0.05934726109
A147: 2004 | B147: 1 | C147: 7 | D147: 1 | G147: 0.03035666523 | H147: 0.01651295305 | I147: 0.00121485 | J147: 1.61e-06 | K147: 6.036563172e-05 | L147: 0.01115248462 | M147: 0.05929892854 | O147: 0.02447468234 | P147: 0.0200623449 | Q147: 0.0005660582829 | R147: 1.590272678e-06 | S147: 2.409067143e-05 | T147: 0.01020474276 | U147: 0.05533350922
A148: 2004 | B148: 1 | C148: 7 | D148: 2 | G148: 0.02965782494 | H148: 0.01580093517 | I148: 0.00121485 | J148: 1.61e-06 | K148: 6.036563172e-05 | L148: 0.01170864991 | M148: 0.05844423565 | O148: 0.02391125108 | P148: 0.01919728168 | Q148: 0.0005660582829 | R148: 1.590272678e-06 | S148: 2.409067143e-05 | T148: 0.01071364493 | U148: 0.05441391691
A149: 2004 | B149: 1 | C149: 7 | D149: 3 | G149: 0.02969143823 | H149: 0.01556673659 | I149: 0.00121485 | J149: 1.61e-06 | K149: 6.036563172e-05 | L149: 0.01164705235 | M149: 0.05818205279 | O149: 0.02393835137 | P149: 0.01891274306 | Q149: 0.0005660582829 | R149: 1.590272678e-06 | S149: 2.409067143e-05 | T149: 0.01065728196 | U149: 0.05410011561
A150: 2004 | B150: 1 | C150: 7 | D150: 4 | G150: 0.03016891265 | H150: 0.01529038076 | I150: 0.00121485 | J150: 1.61e-06 | K150: 6.036563172e-05 | L150: 0.01199126427 | M150: 0.05872738331 | O150: 0.02432330916 | P150: 0.01857698568 | Q150: 0.0005660582829 | R150: 1.590272678e-06 | S150: 2.409067143e-05 | T150: 0.01097224264 | U150: 0.0544642767
A151: 2004 | B151: 1 | C151: 7 | D151: 5 | G151: 0.03136737354 | H151: 0.0154267957 | I151: 0.00121485 | J151: 1.61e-06 | K151: 6.036563172e-05 | L151: 0.01201270362 | M151: 0.06008369849 | O151: 0.02528955329 | P151: 0.01874272245 | Q151: 0.0005660582829 | R151: 1.590272678e-06 | S151: 2.409067143e-05 | T151: 0.01099186006 | U151: 0.05561587503
A152: 2004 | B152: 1 | C152: 7 | D152: 6 | G152: 0.03363061968 | H152: 0.01594659262 | I152: 0.00121485 | J152: 1.61e-06 | K152: 6.036563172e-05 | L152: 0.01139174906 | M152: 0.062245787 | O152: 0.02711426724 | P152: 0.0193742476 | Q152: 0.0005660582829 | R152: 1.590272678e-06 | S152: 2.409067143e-05 | T152: 0.01042367443 | U152: 0.05750392849
A153: 2004 | B153: 1 | C153: 7 | D153: 7 | G153: 0.04061684733 | H153: 0.01691444316 | I153: 0 | J153: 0 | K153: 6.036563172e-05 | L153: 0.01076107254 | M153: 0.06835272866 | O153: 0.03274682605 | P153: 0.02055013366 | Q153: 0 | R153: 0 | S153: 2.409067143e-05 | T153: 0.009846593003 | U153: 0.06316764339
A154: 2004 | B154: 1 | C154: 7 | D154: 8 | G154: 0.0464254891 | H154: 0.01850313429 | I154: 0 | J154: 0 | K154: 6.036563172e-05 | L154: 0.0126133063 | M154: 0.07760229532 | O154: 0.03742997096 | P154: 0.02248030746 | Q154: 0 | R154: 0 | S154: 2.409067143e-05 | T154: 0.01154142332 | U154: 0.07147579241
A155: 2004 | B155: 1 | C155: 7 | D155: 9 | G155: 0.04729192974 | H155: 0.02001831228 | I155: 0 | J155: 0 | K155: 6.036563172e-05 | L155: 0.01421676102 | M155: 0.08158736867 | O155: 0.03812852791 | P155: 0.02432116678 | Q155: 0 | R155: 0 | S155: 2.409067143e-05 | T155: 0.01300861593 | U155: 0.07548240128
A156: 2004 | B156: 1 | C156: 7 | D156: 10 | G156: 0.0432962395 | H156: 0.02090724738 | I156: 0 | J156: 0 | K156: 6.036563172e-05 | L156: 0.01672226125 | M156: 0.08098611376 | O156: 0.03490705253 | P156: 0.02540117484 | Q156: 0 | R156: 0 | S156: 2.409067143e-05 | T156: 0.01530119791 | U156: 0.07563351596
A157: 2004 | B157: 1 | C157: 7 | D157: 11 | G157: 0.04235413611 | H157: 0.02145930534 | I157: 0 | J157: 0 | K157: 6.036563172e-05 | L157: 0.01652503309 | M157: 0.08039884017 | O157: 0.03414749344 | P157: 0.02607189541 | Q157: 0 | R157: 0 | S157: 2.409067143e-05 | T157: 0.01512073027 | U157: 0.07536420979
A158: 2004 | B158: 1 | C158: 7 | D158: 12 | G158: 0.04291980141 | H158: 0.02116023713 | I158: 0 | J158: 0 | K158: 6.036563172e-05 | L158: 0.01497027487 | M158: 0.07911067904 | O158: 0.03460355403 | P158: 0.02570854371 | Q158: 0 | R158: 0 | S158: 2.409067143e-05 | T158: 0.01369809592 | U158: 0.07403428433
A159: 2004 | B159: 1 | C159: 7 | D159: 13 | G159: 0.04089277844 | H159: 0.02113116291 | I159: 0 | J159: 0 | K159: 6.036563172e-05 | L159: 0.01475767445 | M159: 0.07684198142 | O159: 0.03296929206 | P159: 0.0256732201 | Q159: 0 | R159: 0 | S159: 2.409067143e-05 | T159: 0.01350356235 | U159: 0.07217016519
A160: 2004 | B160: 1 | C160: 7 | D160: 14 | G160: 0.03957939272 | H160: 0.02117994356 | I160: 0 | J160: 0 | K160: 6.036563172e-05 | L160: 0.01523574766 | M160: 0.07605544957 | O160: 0.03191039122 | P160: 0.02573248596 | Q160: 0 | R160: 0 | S160: 2.409067143e-05 | T160: 0.01394100874 | U160: 0.0716079766
A161: 2004 | B161: 1 | C161: 7 | D161: 15 | G161: 0.03886063642 | H161: 0.02066194931 | I161: 0 | J161: 0 | K161: 6.036563172e-05 | L161: 0.01418458049 | M161: 0.07376753186 | O161: 0.03133090293 | P161: 0.02510315096 | Q161: 0 | R161: 0 | S161: 2.409067143e-05 | T161: 0.01297917011 | U161: 0.06943731468
A162: 2004 | B162: 1 | C162: 7 | D162: 16 | G162: 0.03925026891 | H162: 0.02066134525 | I162: 0 | J162: 0 | K162: 6.036563172e-05 | L162: 0.01502253563 | M162: 0.07499451542 | O162: 0.03164503926 | P162: 0.02510241706 | Q162: 0 | R162: 0 | S162: 2.409067143e-05 | T162: 0.01374591554 | U162: 0.07051746253
A163: 2004 | B163: 1 | C163: 7 | D163: 17 | G163: 0.04423862029 | H163: 0.02081070119 | I163: 0 | J163: 0 | K163: 6.036563172e-05 | L163: 0.01334205443 | M163: 0.07845174154 | O163: 0.03566683528 | P163: 0.02528387644 | Q163: 0 | R163: 0 | S163: 2.409067143e-05 | T163: 0.0122082422 | U163: 0.0731830446
A164: 2004 | B164: 1 | C164: 7 | D164: 18 | G164: 0.0503630614 | H164: 0.02106412566 | I164: 0 | J164: 0 | K164: 6.036563172e-05 | L164: 0.01268311473 | M164: 0.08417066742 | O164: 0.04060458946 | P164: 0.02559177347 | Q164: 0 | R164: 0 | S164: 2.409067143e-05 | T164: 0.01160529941 | U164: 0.07782575302
A165: 2004 | B165: 1 | C165: 7 | D165: 19 | G165: 0.05251338115 | H165: 0.0203610556 | I165: 0.00121485 | J165: 1.61e-06 | K165: 6.036563172e-05 | L165: 0.01099644608 | M165: 0.08514770846 | O165: 0.04233825791 | P165: 0.02473758138 | Q165: 0.0005660582829 | R165: 1.590272678e-06 | S165: 2.409067143e-05 | T165: 0.01006196442 | U165: 0.07772954294
A166: 2004 | B166: 1 | C166: 7 | D166: 20 | G166: 0.05302959692 | H166: 0.01953031527 | I166: 0.00121485 | J166: 1.61e-06 | K166: 6.036563172e-05 | L166: 0.008825546339 | M166: 0.08266228416 | O166: 0.04275445043 | P166: 0.0237282768 | Q166: 0.0005660582829 | R166: 1.590272678e-06 | S166: 2.409067143e-05 | T166: 0.008075548468 | U166: 0.07515001493
A167: 2004 | B167: 1 | C167: 7 | D167: 21 | G167: 0.05092259781 | H167: 0.01894702462 | I167: 0.00121485 | J167: 1.61e-06 | K167: 6.036563172e-05 | L167: 0.008511305736 | M167: 0.0796577538 | O167: 0.04105570871 | P167: 0.02301961021 | Q167: 0.0005660582829 | R167: 1.590272678e-06 | S167: 2.409067143e-05 | T167: 0.007788012136 | U167: 0.07245507028
A168: 2004 | B168: 1 | C168: 7 | D168: 22 | G168: 0.04726426612 | H168: 0.01820138912 | I168: 0.00121485 | J168: 1.61e-06 | K168: 6.036563172e-05 | L168: 0.008774635578 | M168: 0.07551711646 | O168: 0.03810622446 | P168: 0.0221137034 | Q168: 0.0005660582829 | R168: 1.590272678e-06 | S168: 2.409067143e-05 | T168: 0.008028964121 | U168: 0.06884063121
A169: 2004 | B169: 1 | C169: 7 | D169: 23 | G169: 0.04488115176 | H169: 0.01721897061 | I169: 0.00121485 | J169: 1.61e-06 | K169: 6.036563172e-05 | L169: 0.007545105497 | M169: 0.07092205351 | O169: 0.03618486826 | P169: 0.02092011805 | Q169: 0.0005660582829 | R169: 1.590272678e-06 | S169: 2.409067143e-05 | T169: 0.006903919916 | U169: 0.06460064545
A170: 2004 | B170: 1 | C170: 7 | D170: 24 | G170: 0.03663712778 | H170: 0.01684676718 | I170: 0.00121485 | J170: 1.61e-06 | K170: 6.036563172e-05 | L170: 0.009872609769 | M170: 0.06463333036 | O170: 0.02953822685 | P170: 0.020467911 | Q170: 0.0005660582829 | R170: 1.590272678e-06 | S170: 2.409067143e-05 | T170: 0.009033632099 | U170: 0.05963150918
A171: 2004 | B171: 1 | C171: 8 | D171: 1 | G171: 0.02892664627 | H171: 0.01638042275 | I171: 0.00121485 | J171: 1.61e-06 | K171: 6.036563172e-05 | L171: 0.01078708844 | M171: 0.0573709831 | O171: 0.0233217474 | P171: 0.01990132775 | Q171: 0.0005660582829 | R171: 1.590272678e-06 | S171: 2.409067143e-05 | T171: 0.009870398065 | U171: 0.05368521245
A172: 2004 | B172: 1 | C172: 8 | D172: 2 | G172: 0.02800206759 | H172: 0.01616222992 | I172: 0.00121485 | J172: 1.61e-06 | K172: 6.036563172e-05 | L172: 0.01110295224 | M172: 0.05654407539 | O172: 0.02257631738 | P172: 0.01963623526 | Q172: 0.0005660582829 | R172: 1.590272678e-06 | S172: 2.409067143e-05 | T172: 0.01015941966 | U172: 0.05296371153
A173: 2004 | B173: 1 | C173: 8 | D173: 3 | G173: 0.02805351345 | H173: 0.01583926845 | I173: 0.00121485 | J173: 1.61e-06 | K173: 6.036563172e-05 | L173: 0.01112081012 | M173: 0.05629041765 | O173: 0.02261779497 | P173: 0.01924385454 | Q173: 0.0005660582829 | R173: 1.590272678e-06 | S173: 2.409067143e-05 | T173: 0.01017575997 | U173: 0.0526291487
A174: 2004 | B174: 1 | C174: 8 | D174: 4 | G174: 0.02859362209 | H174: 0.01534460299 | I174: 0.00121485 | J174: 1.61e-06 | K174: 6.036563172e-05 | L174: 0.01160296605 | M174: 0.05681801677 | O174: 0.02305325081 | P174: 0.01864286276 | Q174: 0.0005660582829 | R174: 1.590272678e-06 | S174: 2.409067143e-05 | T174: 0.01061694213 | U174: 0.05290479493
A175: 2004 | B175: 1 | C175: 8 | D175: 5 | G175: 0.02978582872 | H175: 0.01535026899 | I175: 0.00121485 | J175: 1.61e-06 | K175: 6.036563172e-05 | L175: 0.01171731381 | M175: 0.05813023716 | O175: 0.02401445252 | P175: 0.01864974664 | Q175: 0.0005660582829 | R175: 1.590272678e-06 | S175: 2.409067143e-05 | T175: 0.01072157258 | U175: 0.05397751097
A176: 2004 | B176: 1 | C176: 8 | D176: 6 | G176: 0.03194926108 | H176: 0.01582984417 | I176: 0.00121485 | J176: 1.61e-06 | K176: 6.036563172e-05 | L176: 0.01116609596 | M176: 0.06022202685 | O176: 0.02575869285 | P176: 0.01923240455 | Q176: 0.0005660582829 | R176: 1.590272678e-06 | S176: 2.409067143e-05 | T176: 0.01021719741 | U176: 0.05580003403
A177: 2004 | B177: 1 | C177: 8 | D177: 7 | G177: 0.03856121626 | H177: 0.0170146977 | I177: 0 | J177: 0 | K177: 6.036563172e-05 | L177: 0.01049414015 | M177: 0.06613041974 | O177: 0.03108949916 | P177: 0.02067193751 | Q177: 0 | R177: 0 | S177: 2.409067143e-05 | T177: 0.009602344618 | U177: 0.06138787196
A178: 2004 | B178: 1 | C178: 8 | D178: 8 | G178: 0.04403472602 | H178: 0.01905841928 | I178: 0 | J178: 0 | K178: 6.036563172e-05 | L178: 0.0119257488 | M178: 0.07507925974 | O178: 0.03550244808 | P178: 0.0231549487 | Q178: 0 | R178: 0 | S178: 2.409067143e-05 | T178: 0.01091229469 | U178: 0.06959378213
A179: 2004 | B179: 1 | C179: 8 | D179: 9 | G179: 0.04483215668 | H179: 0.02087936107 | I179: 0 | J179: 0 | K179: 6.036563172e-05 | L179: 0.01316289134 | M179: 0.07893477473 | O179: 0.03614536658 | P179: 0.0253672945 | Q179: 0 | R179: 0 | S179: 2.409067143e-05 | T179: 0.01204430445 | U179: 0.0735810562
A180: 2004 | B180: 1 | C180: 8 | D180: 10 | G180: 0.04084135204 | H180: 0.02204624493 | I180: 0 | J180: 0 | K180: 6.036563172e-05 | L180: 0.0154050965 | M180: 0.0783530591 | O180: 0.03292783017 | P180: 0.02678499528 | Q180: 0 | R180: 0 | S180: 2.409067143e-05 | T180: 0.01409596626 | U180: 0.07383288238
A181: 2004 | B181: 1 | C181: 8 | D181: 11 | G181: 0.03990340759 | H181: 0.02263145696 | I181: 0 | J181: 0 | K181: 6.036563172e-05 | L181: 0.01518965509 | M181: 0.07778488527 | O181: 0.03217162417 | P181: 0.02749599624 | Q181: 0 | R181: 0 | S181: 2.409067143e-05 | T181: 0.01389883313 | U181: 0.07359054421
A182: 2004 | B182: 1 | C182: 8 | D182: 12 | G182: 0.04055704119 | H182: 0.02217972207 | I182: 0 | J182: 0 | K182: 6.036563172e-05 | L182: 0.01374147421 | M182: 0.07653860309 | O182: 0.03269860809 | P182: 0.02694716277 | Q182: 0 | R182: 0 | S182: 2.409067143e-05 | T182: 0.01257371915 | U182: 0.07224358069
A183: 2004 | B183: 1 | C183: 8 | D183: 13 | G183: 0.03861281217 | H183: 0.02215336255 | I183: 0 | J183: 0 | K183: 6.036563172e-05 | L183: 0.01351712733 | M183: 0.07434366768 | O183: 0.03113109773 | P183: 0.02691513739 | Q183: 0 | R183: 0 | S183: 2.409067143e-05 | T183: 0.01236843734 | U183: 0.07043876312
A184: 2004 | B184: 1 | C184: 8 | D184: 14 | G184: 0.0373598667 | H184: 0.02212922022 | I184: 0 | J184: 0 | K184: 6.036563172e-05 | L184: 0.01403325632 | M184: 0.07358270887 | O184: 0.03012092608 | P184: 0.02688580576 | Q184: 0 | R184: 0 | S184: 2.409067143e-05 | T184: 0.01284070552 | U184: 0.06987152803
A185: 2004 | B185: 1 | C185: 8 | D185: 15 | G185: 0.03671053451 | H185: 0.0215481939 | I185: 0 | J185: 0 | K185: 6.036563172e-05 | L185: 0.01305008287 | M185: 0.07136917691 | O185: 0.02959741011 | P185: 0.0261798902 | Q185: 0 | R185: 0 | S185: 2.409067143e-05 | T185: 0.01194108248 | U185: 0.06774247346
A186: 2004 | B186: 1 | C186: 8 | D186: 16 | G186: 0.03721600721 | H186: 0.02131165626 | I186: 0 | J186: 0 | K186: 6.036563172e-05 | L186: 0.01396824431 | M186: 0.07255627341 | O186: 0.03000494117 | P186: 0.02589250976 | Q186: 0 | R186: 0 | S186: 2.409067143e-05 | T186: 0.01278121825 | U186: 0.06870275985
A187: 2004 | B187: 1 | C187: 8 | D187: 17 | G187: 0.04227623864 | H187: 0.02091974681 | I187: 0 | J187: 0 | K187: 6.036563172e-05 | L187: 0.01264474022 | M187: 0.07590109131 | O187: 0.03408468958 | P187: 0.02541636098 | Q187: 0 | R187: 0 | S187: 2.409067143e-05 | T187: 0.01157018598 | U187: 0.07109532721
A188: 2004 | B188: 1 | C188: 8 | D188: 18 | G188: 0.04837064209 | H188: 0.02085989869 | I188: 0 | J188: 0 | K188: 6.036563172e-05 | L188: 0.01214317452 | M188: 0.08143408093 | O188: 0.03899822627 | P188: 0.02534364875 | Q188: 0 | R188: 0 | S188: 2.409067143e-05 | T188: 0.0111112435 | U188: 0.07547720919
A189: 2004 | B189: 1 | C189: 8 | D189: 19 | G189: 0.05051044032 | H189: 0.02006439951 | I189: 0.00121485 | J189: 1.61e-06 | K189: 6.036563172e-05 | L189: 0.01052769406 | M189: 0.08237935953 | O189: 0.04072341188 | P189: 0.02437716027 | Q189: 0.0005660582829 | R189: 1.590272678e-06 | S189: 2.409067143e-05 | T189: 0.00963304711 | U189: 0.07532535849
A190: 2004 | B190: 1 | C190: 8 | D190: 20 | G190: 0.05094061002 | H190: 0.01934858519 | I190: 0.00121485 | J190: 1.61e-06 | K190: 6.036563172e-05 | L190: 0.00840871627 | M190: 0.07997473711 | O190: 0.04107023082 | P190: 0.02350748459 | Q190: 0.0005660582829 | R190: 1.590272678e-06 | S190: 2.409067143e-05 | T190: 0.007694140758 | U190: 0.0728635954
A191: 2004 | B191: 1 | C191: 8 | D191: 21 | G191: 0.04892182907 | H191: 0.01873987248 | I191: 0.00121485 | J191: 1.61e-06 | K191: 6.036563172e-05 | L191: 0.008129362578 | M191: 0.07706788976 | O191: 0.03944261389 | P191: 0.02276793156 | Q191: 0.0005660582829 | R191: 1.590272678e-06 | S191: 2.409067143e-05 | T191: 0.007438526636 | U191: 0.07024081132
A192: 2004 | B192: 1 | C192: 8 | D192: 22 | G192: 0.04533716376 | H192: 0.01806885738 | I192: 0.00121485 | J192: 1.61e-06 | K192: 6.036563172e-05 | L192: 0.008379026679 | M192: 0.07306187345 | O192: 0.03655252224 | P192: 0.0219526845 | Q192: 0.0005660582829 | R192: 1.590272678e-06 | S192: 2.409067143e-05 | T192: 0.007666974198 | U192: 0.06676392017
A193: 2004 | B193: 1 | C193: 8 | D193: 23 | G193: 0.04287772288 | H193: 0.01735334427 | I193: 0.00121485 | J193: 1.61e-06 | K193: 6.036563172e-05 | L193: 0.007108313213 | M193: 0.06861620599 | O193: 0.03456962873 | P193: 0.02108337478 | Q193: 0.0005660582829 | R193: 1.590272678e-06 | S193: 2.409067143e-05 | T193: 0.006504246386 | U193: 0.06274898912
A194: 2004 | B194: 1 | C194: 8 | D194: 24 | G194: 0.03492368517 | H194: 0.01685126674 | I194: 0.00121485 | J194: 1.61e-06 | K194: 6.036563172e-05 | L194: 0.009480173988 | M194: 0.06253195153 | O194: 0.02815678514 | P194: 0.02047337773 | Q194: 0.0005660582829 | R194: 1.590272678e-06 | S194: 2.409067143e-05 | T194: 0.008674545641 | U194: 0.05789644774
A195: 2004 | B195: 1 | C195: 9 | D195: 1 | G195: 0.0319002445 | H195: 0.01671141507 | I195: 0.00121485 | J195: 1.61e-06 | K195: 6.036563172e-05 | L195: 0.01089656175 | M195: 0.06078504695 | O195: =G195*X$5 -> 0.02571917385 | P195: =H195*Y$5 -> 0.02030346551 | Q195: =I195*Z$5 -> 0.0005660582829 | R195: =J195*AA$5 -> 1.590272678e-06 | S195: =K195*AB$5 -> 2.409067143e-05 | T195: =L195*AC$5 -> 0.009970568301 | U195: =SUM(O195:T195) -> 0.05658494688
A196: 2004 | B196: 1 | C196: 9 | D196: 2 | G196: 0.03084671148 | H196: 0.01626127247 | I196: 0.00121485 | J196: 1.61e-06 | K196: 6.036563172e-05 | L196: 0.01164611288 | M196: 0.06003092246 | O196: 0.02486977601 | P196: 0.01975656659 | Q196: 0.0005660582829 | R196: 1.590272678e-06 | S196: 2.409067143e-05 | T196: 0.01065642232 | U196: 0.05587450415
A197: 2004 | B197: 1 | C197: 9 | D197: 3 | G197: 0.03044400148 | H197: 0.01620144944 | I197: 0.00121485 | J197: 1.61e-06 | K197: 6.036563172e-05 | L197: 0.01154913891 | M197: 0.05947141546 | O197: 0.02454509609 | P197: 0.01968388485 | Q197: 0.0005660582829 | R197: 1.590272678e-06 | S197: 2.409067143e-05 | T197: 0.01056768924 | U197: 0.05538840941
A198: 2004 | B198: 1 | C198: 9 | D198: 4 | G198: 0.03191577897 | H198: 0.01558324648 | I198: 0.00121485 | J198: 1.61e-06 | K198: 6.036563172e-05 | L198: 0.01156610643 | M198: 0.06034195751 | O198: 0.02573169832 | P198: 0.01893280169 | Q198: 0.0005660582829 | R198: 1.590272678e-06 | S198: 2.409067143e-05 | T198: 0.01058321485 | U198: 0.05583945409
A199: 2004 | B199: 1 | C199: 9 | D199: 5 | G199: 0.03284528011 | H199: 0.01555100828 | I199: 0.00121485 | J199: 1.61e-06 | K199: 6.036563172e-05 | L199: 0.01180002999 | M199: 0.06147314401 | O199: 0.02648109701 | P199: 0.01889363402 | Q199: 0.0005660582829 | R199: 1.590272678e-06 | S199: 2.409067143e-05 | T199: 0.0107972595 | U199: 0.05676372977
A200: 2004 | B200: 1 | C200: 9 | D200: 6 | G200: 0.03442991448 | H200: 0.01619425186 | I200: 0.00121485 | J200: 1.61e-06 | K200: 6.036563172e-05 | L200: 0.01123503621 | M200: 0.06313602818 | O200: 0.02775868868 | P200: 0.01967514018 | Q200: 0.0005660582829 | R200: 1.590272678e-06 | S200: 2.409067143e-05 | T200: 0.01028027909 | U200: 0.05830584718
... 4297 more rows

Sheet 2006 Input to CA model
A2: Feed into OEB Cost Allocation Model (version 50) sheet "I6 Customer Data", row 27
D3: 1 | E3: 2 | F3: 3 | G3: 4 | H3: 5 | I3: 6 | J3: 7 | K3: 8 | L3: 9 | M3: 10 | N3: 11 | O3: 12 | P3: 13 | Q3: 14 | R3: 15 | S3: 16 | T3: 17 | U3: 18 | V3: 19 | W3: 20
B4: ID | C4: Total | D4: Residential | E4: GS>50kW | F4: Street Lighting | G4: Sentinel Lighting | H4: USL | I4: GS<50kW
A6: kWh - 30 year weather normalized amount | C6: =SUM(D6:I6) -> 468300043.1 | D6: 239658158.5 | E6: 146047497.3 | F6: 5353155.35 | G6: 7299.44 | H6: 534100.97 | I6: 76699831.46 | J6: 0 | K6: 0 | L6: 0 | M6: 0 | N6: 0
A9: Feed into OEB Cost Allocation Model sheet (version 50) "I8 Demand Data", row 40, 45, 50, 55, 61 and 67
D10: 1 | E10: 2 | F10: 3 | G10: 4 | H10: 5 | I10: 6 | J10: 7 | K10: 8 | L10: 9 | M10: 10 | N10: 11 | O10: 12 | P10: 13 | Q10: 14 | R10: 15 | S10: 16 | T10: 17 | U10: 18 | V10: 19 | W10: 20
A11: Customer Classes | C11: Total | D11: Residential | E11: GS>50kW | F11: Street Lighting | G11: Sentinel Lighting | H11: USL | I11: GS<50kW
A13: CO-INCIDENT PEAK (kW)
A15: 1 CP
A16: Total Sytem CP | B16: DCP1 | C16: =SUM(D16:I16) -> 90994.93773 | D16: 52245.53213 | E16: 23590.97199 | F16: 0 | G16: 0 | H16: 60.36563172 | I16: 15098.06798
A18: 4 CP
A19: Total Sytem CP | B19: DCP4 | C19: =SUM(D19:I19) -> 346121.9472 | D19: 205823.4802 | E19: 87757.22632 | F19: 1290.373102 | G19: 1.702346992 | H19: 242.1747483 | I19: 51006.99042
A21: 12 CP
A22: Total Sytem CP | B22: DCP12 | C22: =SUM(D22:I22) -> 873581.3835 | D22: 491011.8213 | E22: 250324.7531 | F22: 5020.072793 | G22: 6.897899372 | H22: 729.1382967 | I22: 126488.7001
A24: NON CO_INCIDENT PEAK (kW)
A26: 1 NCP
A27: Classification NCP from Load Data Provider | B27: DNCP1 | C27: =SUM(D27:I27) -> 104158.7728 | D27: 60081.86622 | E27: 25609.11694 | F27: 1404.96 | G27: 1.865549971 | H27: 78.34950269 | I27: 16982.61458
A29: 4 NCP
A30: Classification NCP from Load Data Provider | B30: DNCP4 | C30: =SUM(D30:I30) -> 390421.2458 | D30: 223469.2014 | E30: 98329.20966 | F30: 5213.623472 | G30: 7.103304655 | H30: 268.4472625 | I30: 63133.66063
A32: 12 NCP
A33: Classification NCP from Load Data Provider | B33: DNCP12 | C33: =SUM(D33:I33) -> 993309.0826 | D33: 529017.034 | E33: 276653.0309 | F33: 14692.13854 | G33: 20.05776325 | H33: 729.1382967 | I33: 172197.6832

Sheet Revised Inputs to CA model
A2: Feed into OEB Cost Allocation Model (version 50) sheet "I6 Customer Data", row 27
B4: ID | C4: Total | D4: ='Hourly load shapes by class'!G2 -> Residential | E4: ='Hourly load shapes by class'!H2 -> GS>50kW | F4: ='Hourly load shapes by class'!I2 -> Street Lighting | G4: ='Hourly load shapes by class'!J2 -> Sentinel Lighting | H4: ='Hourly load shapes by class'!K2 -> USL | I4: ='Hourly load shapes by class'!L2 -> GS<50kW
A6: kWh - 30 year weather normalized amount | C6: =SUM(D6:I6) -> 441494021.9 | D6: ='Hourly load shapes by class'!X4 -> 193221398.1 | E6: ='Hourly load shapes by class'!Y4 -> 177439810.6 | F6: 430600.273 | G6: ='Hourly load shapes by class'!AA4 -> 7210 | H6: ='Hourly load shapes by class'!AB4 -> 213148.618 | I6: ='Hourly load shapes by class'!AC4 -> 70181854.21
A9: Feed into OEB Cost Allocation Model sheet (version 50) "I8 Demand Data", row 40, 45, 50, 55, 61 and 67 | K9: 2024 Demand Data
A11: Customer Classes | C11: Total | D11: ='Hourly load shapes by class'!G2 -> Residential | E11: ='Hourly load shapes by class'!H2 -> GS>50kW | F11: ='Hourly load shapes by class'!I2 -> Street Lighting | G11: ='Hourly load shapes by class'!J2 -> Sentinel Lighting | H11: ='Hourly load shapes by class'!K2 -> USL | I11: ='Hourly load shapes by class'!L2 -> GS<50kW | K11: =D11 -> Residential | L11: =E11 -> GS>50kW | M11: Street Lighting | N11: Sentinel Lighting | O11: USL | P11: GS<50kW
A13: CO-INCIDENT PEAK (kW)
A15: 1 CP
A16: Total Sytem CP | B16: DCP1 | C16: =SUM(D16:I16) -> 90994.93773 | D16: ='Hourly load shapes by class'!G8802*1000000 -> 52245.53213 | E16: ='Hourly load shapes by class'!H8802*1000000 -> 23590.97199 | F16: ='Hourly load shapes by class'!I8802*1000000 -> 0 | G16: ='Hourly load shapes by class'!J8802*1000000 -> 0 | H16: ='Hourly load shapes by class'!K8802*1000000 -> 60.36563172 | I16: ='Hourly load shapes by class'!L8802*1000000 -> 15098.06798 | K16: ='Hourly load shapes by class'!O8815*1000000 -> 42122.30798 | L16: ='Hourly load shapes by class'!P8815*1000000 -> 28661.7551 | M16: ='Hourly load shapes by class'!Q8815*1000000 -> 0 | N16: ='Hourly load shapes by class'!R8815*1000000 -> 0 | O16: ='Hourly load shapes by class'!S8815*1000000 -> 24.09067143 | P16: ='Hourly load shapes by class'!T8815*1000000 -> 13815.02913
A18: 4 CP
A19: Total Sytem CP | B19: DCP4 | C19: =SUM(D19:I19) -> 346121.9472 | D19: =SUM('Hourly load shapes by class'!G8815:G8818)*1000000 -> 205823.4802 | E19: =SUM('Hourly load shapes by class'!H8815:H8818)*1000000 -> 87757.22632 | F19: =SUM('Hourly load shapes by class'!I8815:I8818)*1000000 -> 1290.373102 | G19: =SUM('Hourly load shapes by class'!J8815:J8818)*1000000 -> 1.702346992 | H19: =SUM('Hourly load shapes by class'!K8815:K8818)*1000000 -> 242.1747483 | I19: =SUM('Hourly load shapes by class'!L8815:L8818)*1000000 -> 51006.99042 | K19: =SUM('Hourly load shapes by class'!O8815:O8818)*1000000 -> 165299.3556 | L19: =SUM('Hourly load shapes by class'!P8815:P8818)*1000000 -> 106849.0696 | M19: =SUM('Hourly load shapes by class'!Q8815:Q8818)*1000000 -> 66.21199057 | N19: =SUM('Hourly load shapes by class'!R8815:R8818)*1000000 -> 0.166453723 | O19: =SUM('Hourly load shapes by class'!S8815:S8818)*1000000 -> 96.64691852 | P19: =SUM('Hourly load shapes by class'!T8815:T8818)*1000000 -> 47705.86257
A21: 12 CP
A22: Total Sytem CP | B22: DCP12 | C22: =SUM(D22:I22) -> 873581.3835 | D22: =SUM('Hourly load shapes by class'!G8802:G8813)*1000000 -> 491011.8213 | E22: =SUM('Hourly load shapes by class'!H8802:H8813)*1000000 -> 250324.7531 | F22: =SUM('Hourly load shapes by class'!I8802:I8813)*1000000 -> 5020.072793 | G22: =SUM('Hourly load shapes by class'!J8802:J8813)*1000000 -> 6.897899372 | H22: =SUM('Hourly load shapes by class'!K8802:K8813)*1000000 -> 729.1382967 | I22: =SUM('Hourly load shapes by class'!L8802:L8813)*1000000 -> 126488.7001 | K22: =SUM('Hourly load shapes by class'!O8802:O8813)*1000000 -> 385805.112 | L22: =SUM('Hourly load shapes by class'!P8802:P8813)*1000000 -> 309389.5846 | M22: =SUM('Hourly load shapes by class'!Q8802:Q8813)*1000000 -> 1249.763759 | N22: =SUM('Hourly load shapes by class'!R8802:R8813)*1000000 -> 3.599417798 | O22: =SUM('Hourly load shapes by class'!S8802:S8813)*1000000 -> 290.9839694 | P22: =SUM('Hourly load shapes by class'!T8802:T8813)*1000000 -> 123853.4213
A24: NON CO_INCIDENT PEAK (kW)
A26: 1 NCP
A27: Classification NCP from Load Data Provider | B27: DNCP1 | C27: =SUM(D27:I27) -> 102437.9384 | D27: ='Hourly load shapes by class'!G8788*1000000 -> 60081.86622 | E27: ='Hourly load shapes by class'!H8788*1000000 -> 24096.63197 | F27: ='Hourly load shapes by class'!I8788*1000000 -> 1214.85 | G27: ='Hourly load shapes by class'!J8788*1000000 -> 1.61 | H27: ='Hourly load shapes by class'!K8788*1000000 -> 60.36563172 | I27: ='Hourly load shapes by class'!L8788*1000000 -> 16982.61458 | K27: ='Hourly load shapes by class'!O8788*1000000 -> 48440.25451 | L27: ='Hourly load shapes by class'!P8788*1000000 -> 29276.10463 | M27: ='Hourly load shapes by class'!Q8788*1000000 -> 566.0582829 | N27: ='Hourly load shapes by class'!R8788*1000000 -> 1.590272678 | O27: ='Hourly load shapes by class'!S8788*1000000 -> 24.09067143 | P27: ='Hourly load shapes by class'!T8788*1000000 -> 15539.42633
A29: 4 NCP
A30: Classification NCP from Load Data Provider | B30: DNCP4 | C30: =SUM(D30:I30) -> 390421.2458 | D30: =(LARGE('Hourly load shapes by class'!G8788:G8799,1)+LARGE('Hourly load shapes by class'!G8788:G8799,2)+LARGE('Hourly load shapes by class'!G8788:G8799,3)+LARGE('Hourly load shapes by class'!G8788:G8799,4))*1000000 -> 223469.2014 | E30: =(LARGE('Hourly load shapes by class'!H8788:H8799,1)+LARGE('Hourly load shapes by class'!H8788:H8799,2)+LARGE('Hourly load shapes by class'!H8788:H8799,3)+LARGE('Hourly load shapes by class'!H8788:H8799,4))*1000000 -> 98329.20966 | F30: =(LARGE('Hourly load shapes by class'!I8788:I8799,1)+LARGE('Hourly load shapes by class'!I8788:I8799,2)+LARGE('Hourly load shapes by class'!I8788:I8799,3)+LARGE('Hourly load shapes by class'!I8788:I8799,4))*1000000 -> 5213.623472 | G30: =(LARGE('Hourly load shapes by class'!J8788:J8799,1)+LARGE('Hourly load shapes by class'!J8788:J8799,2)+LARGE('Hourly load shapes by class'!J8788:J8799,3)+LARGE('Hourly load shapes by class'!J8788:J8799,4))*1000000 -> 7.103304655 | H30: =(LARGE('Hourly load shapes by class'!K8788:K8799,1)+LARGE('Hourly load shapes by class'!K8788:K8799,2)+LARGE('Hourly load shapes by class'!K8788:K8799,3)+LARGE('Hourly load shapes by class'!K8788:K8799,4))*1000000 -> 268.4472625 | I30: =(LARGE('Hourly load shapes by class'!L8788:L8799,1)+LARGE('Hourly load shapes by class'!L8788:L8799,2)+LARGE('Hourly load shapes by class'!L8788:L8799,3)+LARGE('Hourly load shapes by class'!L8788:L8799,4))*1000000 -> 63133.66063 | K30: =(LARGE('Hourly load shapes by class'!O8788:O8799,1)+LARGE('Hourly load shapes by class'!O8788:O8799,2)+LARGE('Hourly load shapes by class'!O8788:O8799,3)+LARGE('Hourly load shapes by class'!O8788:O8799,4))*1000000 -> 180169.2536 | L30: =(LARGE('Hourly load shapes by class'!P8788:P8799,1)+LARGE('Hourly load shapes by class'!P8788:P8799,2)+LARGE('Hourly load shapes by class'!P8788:P8799,3)+LARGE('Hourly load shapes by class'!P8788:P8799,4))*1000000 -> 119464.6718 | M30: =(LARGE('Hourly load shapes by class'!Q8788:Q8799,1)+LARGE('Hourly load shapes by class'!Q8788:Q8799,2)+LARGE('Hourly load shapes by class'!Q8788:Q8799,3)+LARGE('Hourly load shapes by class'!Q8788:Q8799,4))*1000000 -> 2429.283245 | N30: =(LARGE('Hourly load shapes by class'!R8788:R8799,1)+LARGE('Hourly load shapes by class'!R8788:R8799,2)+LARGE('Hourly load shapes by class'!R8788:R8799,3)+LARGE('Hourly load shapes by class'!R8788:R8799,4))*1000000 -> 7.0162679 | O30: =(LARGE('Hourly load shapes by class'!S8788:S8799,1)+LARGE('Hourly load shapes by class'!S8788:S8799,2)+LARGE('Hourly load shapes by class'!S8788:S8799,3)+LARGE('Hourly load shapes by class'!S8788:S8799,4))*1000000 -> 107.131734 | P30: =(LARGE('Hourly load shapes by class'!T8788:T8799,1)+LARGE('Hourly load shapes by class'!T8788:T8799,2)+LARGE('Hourly load shapes by class'!T8788:T8799,3)+LARGE('Hourly load shapes by class'!T8788:T8799,4))*1000000 -> 57768.5411
A32: 12 NCP
A33: Classification NCP from Load Data Provider | B33: DNCP12 | C33: =SUM(D33:I33) -> 993309.0826 | D33: =SUM('Hourly load shapes by class'!G8788:G8799)*1000000 -> 529017.034 | E33: =SUM('Hourly load shapes by class'!H8788:H8799)*1000000 -> 276653.0309 | F33: =SUM('Hourly load shapes by class'!I8788:I8799)*1000000 -> 14692.13854 | G33: =SUM('Hourly load shapes by class'!J8788:J8799)*1000000 -> 20.05776325 | H33: =SUM('Hourly load shapes by class'!K8788:K8799)*1000000 -> 729.1382967 | I33: =SUM('Hourly load shapes by class'!L8788:L8799)*1000000 -> 172197.6832 | K33: =SUM('Hourly load shapes by class'!O8788:O8799)*1000000 -> 426513.3788 | L33: =SUM('Hourly load shapes by class'!P8788:P8799)*1000000 -> 336118.4704 | M33: =SUM('Hourly load shapes by class'!Q8788:Q8799)*1000000 -> 6845.788955 | N33: =SUM('Hourly load shapes by class'!R8788:R8799)*1000000 -> 19.81199558 | O33: =SUM('Hourly load shapes by class'!S8788:S8799)*1000000 -> 290.9839694 | P33: =SUM('Hourly load shapes by class'!T8788:T8799)*1000000 -> 157564.2666
